{"text_format":"3","workbook":"xlsx","n_sheets":1,"sheets":["最终"],"not_rendered":{"images":1,"external_links":1,"defined_names":1},"read":"whole","date_system":"1900"}

{"sheet":"最终","index":0,"n_rows":296,"n_cols":16,"rows_kept":296,"merged":[[0,0,0,1],[1,0,1,11]]}
["附件1"]
["2021年长春市“强师计划”招聘事业单位工作人员岗位及资格条件一览表（9-1号）"]
["序号","主管部门","招聘单位","岗位名称","岗位职级","经费类型","招聘人数","性别","学历","所学专业","报名邮箱及报名电话","备注","校验","可招数","差额","是否"]
[1,"长春市教育局","长春广播电视大学","社会工作教师","初级专业技术岗位","财政拨款",1,"不限","硕士研究生及以上学历学位","研究生：社会工作(专业学位)、社会保障、社会学(一级学科)","报名邮箱：463062957@qq.com\n报名电话：0431-82857756",null,{"$f":"C4&D4","v":"长春广播电视大学社会工作教师"},{"$f":"VLOOKUP(M4,[1]未招聘!A:I,8,FALSE)","v":1},{"$f":"N4-G4","v":0},{"$f":"VLOOKUP(M4,[1]未招聘!A:I,9,FALSE)","v":"是"}]
[2,"长春市教育局","长春广播电视大学","机械设计及其自动化教师","初级专业技术岗位","财政拨款",1,"不限","硕士研究生及以上学历学位","研究生：机械制造及其自动化、机械电子工程","报名邮箱：463062957@qq.com\n报名电话：0431-82857756",null,"长春广播电视大学机械设计及其自动化教师",{"$f":"VLOOKUP(M5,[1]未招聘!A:I,8,FALSE)","v":1},0,{"$f":"VLOOKUP(M5,[1]未招聘!A:I,9,FALSE)","v":"是"}]
[3,"长春市教育局","长春广播电视大学","土木工程教师","初级专业技术岗位","财政拨款",1,"不限","硕士研究生及以上学历学位","研究生：结构工程","报名邮箱：463062957@qq.com\n报名电话：0431-82857756",null,"长春广播电视大学土木工程教师",{"$f":"VLOOKUP(M6,[1]未招聘!A:I,8,FALSE)","v":1},0,{"$f":"VLOOKUP(M6,[1]未招聘!A:I,9,FALSE)","v":"是"}]
[4,"长春市教育局","长春教育学院","计算机专业教师","初级专业技术岗位","财政拨款",2,"不限","硕士研究生及以上学历学位","研究生：计算机科学与技术(一级学科)","报名邮箱：ccjyxyrenshichu@163.com\n报名电话：0431-80526918",null,"长春教育学院计算机专业教师",{"$f":"VLOOKUP(M7,[1]未招聘!A:I,8,FALSE)","v":2},0,{"$f":"VLOOKUP(M7,[1]未招聘!A:I,9,FALSE)","v":"是"}]
[5,"长春市教育局","长春职业技术学院","职业教育研究","初级专业技术岗位","财政拨款",1,"不限","博士研究生学历学位","研究生：哲学(门类)、经济学(门类)、教育学(门类)、文学(门类)、工学(门类)、农学(门类)、管理学(门类)、艺术学(门类)、机械工程(一级学科)、电气工程(一级学科)、信息与通信工程(一级学科)、计算机科学与技术(一级学科)、农业工程(一级学科)、食品科学与工程(一级学科)","报名邮箱：371610003@qq.com\n报名电话：0431-84602802、17804308607",null,"长春职业技术学院职业教育研究",{"$f":"VLOOKUP(M8,[1]未招聘!A:I,8,FALSE)","v":{"$error":"#N/A"}},{"$error":"#N/A"},{"$f":"VLOOKUP(M8,[1]未招聘!A:I,9,FALSE)","v":{"$error":"#N/A"}}]
[6,"长春市教育局","长春职业技术学院","虚拟现实专业教师","初级专业技术岗位","财政拨款",1,"不限","硕士研究生及以上学历学位","研究生：软件工程","报名邮箱：371610003@qq.com\n报名电话：0431-84602802、17804308607",null,"长春职业技术学院虚拟现实专业教师",{"$f":"VLOOKUP(M9,[1]未招聘!A:I,8,FALSE)","v":1},0,{"$f":"VLOOKUP(M9,[1]未招聘!A:I,9,FALSE)","v":"是"}]
[7,"长春市教育局","长春职业技术学院","消防专业教师","初级专业技术岗位","财政拨款",1,"不限","硕士研究生及以上学历学位","研究生：安全科学与工程、市政工程、建筑技术科学","报名邮箱：371610003@qq.com\n报名电话：0431-84602802、17804308607",null,{"$f":"C10&D10","v":"长春职业技术学院消防专业教师"},{"$f":"VLOOKUP(M10,[1]未招聘!A:I,8,FALSE)","v":1},{"$f":"N10-G10","v":0},{"$f":"VLOOKUP(M10,[1]未招聘!A:I,9,FALSE)","v":"是"}]
[8,"长春市教育局","长春职业技术学院","信息安全技术应用专业教师","初级专业技术岗位","财政拨款",1,"不限","硕士研究生及以上学历学位","研究生：计算机系统结构、网络与信息安全、网络空间安全(网络安全或应用安全方向)","报名邮箱：371610003@qq.com\n报名电话：0431-84602802、17804308607",null,"长春职业技术学院信息安全技术应用专业教师",{"$f":"VLOOKUP(M11,[1]未招聘!A:I,8,FALSE)","v":1},0,{"$f":"VLOOKUP(M11,[1]未招聘!A:I,9,FALSE)","v":"是"}]
[9,"长春市教育局","长春职业技术学院","计算机网络技术专业教师","初级专业技术岗位","财政拨款",1,"不限","硕士研究生及以上学历学位","研究生：计算机系统结构、网络与信息安全、网络空间安全","报名邮箱：371610003@qq.com\n报名电话：0431-84602802、17804308607",null,"长春职业技术学院计算机网络技术专业教师",{"$f":"VLOOKUP(M12,[1]未招聘!A:I,8,FALSE)","v":1},0,{"$f":"VLOOKUP(M12,[1]未招聘!A:I,9,FALSE)","v":"是"}]
[10,"长春市教育局","长春职业技术学院","软件技术专业教师","初级专业技术岗位","财政拨款",1,"不限","硕士研究生及以上学历学位","研究生：计算机软件与理论、软件工程、软件工程(专业学位)","报名邮箱：371610003@qq.com\n报名电话：0431-84602802、17804308607",null,"长春职业技术学院软件技术专业教师",{"$f":"VLOOKUP(M13,[1]未招聘!A:I,8,FALSE)","v":1},0,{"$f":"VLOOKUP(M13,[1]未招聘!A:I,9,FALSE)","v":"是"}]
[11,"长春市教育局","长春职业技术学院","数字媒体技术专业教师","初级专业技术岗位","财政拨款",1,"不限","硕士研究生及以上学历学位","研究生：计算机应用技术、软件工程","报名邮箱：371610003@qq.com\n报名电话：0431-84602802、17804308607",null,"长春职业技术学院数字媒体技术专业教师",{"$f":"VLOOKUP(M14,[1]未招聘!A:I,8,FALSE)","v":1},0,{"$f":"VLOOKUP(M14,[1]未招聘!A:I,9,FALSE)","v":"是"}]
[12,"长春市教育局","长春职业技术学院","企业管理专业教师","初级专业技术岗位","财政拨款",1,"不限","博士研究生学历学位","研究生：企业管理","报名邮箱：371610003@qq.com\n报名电话：0431-84602802、17804308607",null,"长春职业技术学院企业管理专业教师",{"$f":"VLOOKUP(M15,[1]未招聘!A:I,8,FALSE)","v":1},0,{"$f":"VLOOKUP(M15,[1]未招聘!A:I,9,FALSE)","v":"是"}]
[13,"长春市教育局","长春职业技术学院","工商管理专业教师","初级专业技术岗位","财政拨款",1,"不限","博士研究生学历学位","研究生：工商管理","报名邮箱：371610003@qq.com\n报名电话：0431-84602802、17804308607",null,"长春职业技术学院工商管理专业教师",{"$f":"VLOOKUP(M16,[1]未招聘!A:I,8,FALSE)","v":1},0,{"$f":"VLOOKUP(M16,[1]未招聘!A:I,9,FALSE)","v":"是"}]
[14,"长春市教育局","长春职业技术学院","管理科学与工程\n专业教师","初级专业技术岗位","财政拨款",1,"不限","博士研究生学历学位","研究生：管理科学与工程","报名邮箱：371610003@qq.com\n报名电话：0431-84602802、17804308607",null,"长春职业技术学院管理科学与工程\n专业教师",{"$f":"VLOOKUP(M17,[1]未招聘!A:I,8,FALSE)","v":{"$error":"#N/A"}},{"$error":"#N/A"},{"$f":"VLOOKUP(M17,[1]未招聘!A:I,9,FALSE)","v":{"$error":"#N/A"}}]
[15,"长春市教育局","长春师范高等专科学校","思政专业教师","初级专业技术岗位","财政拨款",1,"不限","硕士研究生及以上学历学位","研究生：马克思主义理论(一级学科)、政治学(一级学科)、学科教学(思政)","报名邮箱：38195034@qq.com\n报名电话：0431-85839211、13756814897",null,"长春师范高等专科学校思政专业教师",{"$f":"VLOOKUP(M18,[1]未招聘!A:I,8,FALSE)","v":1},0,{"$f":"VLOOKUP(M18,[1]未招聘!A:I,9,FALSE)","v":"是"}]
[16,"长春市教育局","长春师范高等专科学校","老年医学专业教师","初级专业技术岗位","财政拨款",1,"不限","硕士研究生及以上学历学位","研究生：老年医学、老年医学(专业学位)","报名邮箱：38195034@qq.com\n报名电话：0431-85839211、13756814897",null,"长春师范高等专科学校老年医学专业教师",{"$f":"VLOOKUP(M19,[1]未招聘!A:I,8,FALSE)","v":1},0,{"$f":"VLOOKUP(M19,[1]未招聘!A:I,9,FALSE)","v":"是"}]
[17,"长春市教育局","长春师范高等专科学校","多媒体技术专业教师","初级专业技术岗位","财政拨款",1,"不限","硕士研究生及以上学历学位","研究生：设计学(一级学科)、艺术设计(专业学位)","报名邮箱：38195034@qq.com\n报名电话：0431-85839211、13756814897",null,"长春师范高等专科学校多媒体技术专业教师",{"$f":"VLOOKUP(M20,[1]未招聘!A:I,8,FALSE)","v":{"$error":"#N/A"}},{"$error":"#N/A"},{"$f":"VLOOKUP(M20,[1]未招聘!A:I,9,FALSE)","v":{"$error":"#N/A"}}]
[18,"长春市教育局","长春市机械工业学校","音乐教师","初级专业技术岗位","财政拨款",1,"不限","硕士研究生及以上学历学位","研究生：音乐、音乐学、学科教学(音乐)","报名邮箱：234591169@qq.com\n报名电话：0431-81819318","2022年7月31日前必须取得相应的教师资格证","长春市机械工业学校音乐教师",{"$f":"VLOOKUP(M21,[1]未招聘!A:I,8,FALSE)","v":1},0,{"$f":"VLOOKUP(M21,[1]未招聘!A:I,9,FALSE)","v":"是"}]
[19,"长春市教育局","长春市机械工业学校","体育教师","初级专业技术岗位","财政拨款",1,"不限","硕士研究生及以上学历学位","研究生：体育学(一级学科)、学科教学(体育)、体育(一级学科)","报名邮箱：234591169@qq.com\n报名电话：0431-81819318","2022年7月31日前必须取得相应的教师资格证","长春市机械工业学校体育教师",{"$f":"VLOOKUP(M22,[1]未招聘!A:I,8,FALSE)","v":1},0,{"$f":"VLOOKUP(M22,[1]未招聘!A:I,9,FALSE)","v":"是"}]
[20,"长春市教育局","长春职业技术学校","思政教师","初级专业技术岗位","财政拨款",2,"不限","硕士研究生及以上学历学位","研究生：学科教学(思政)、政治学(一级学科)、马克思主义理论(一级学科)","报名邮箱：191180600@qq.com\n报名电话：0431-84597108","2022年7月31日前必须取得相应的教师资格证","长春职业技术学校思政教师",{"$f":"VLOOKUP(M23,[1]未招聘!A:I,8,FALSE)","v":2},0,{"$f":"VLOOKUP(M23,[1]未招聘!A:I,9,FALSE)","v":"是"}]
[21,"长春市教育局","长春职业技术学校","物理教师","初级专业技术岗位","财政拨款",1,"不限","硕士研究生及以上学历学位","研究生：物理学(一级学科)、学科教学(物理)(专业学位)","报名邮箱：191180600@qq.com\n报名电话：0431-84597108","2022年7月31日前必须取得相应的教师资格证","长春职业技术学校物理教师",{"$f":"VLOOKUP(M24,[1]未招聘!A:I,8,FALSE)","v":1},0,{"$f":"VLOOKUP(M24,[1]未招聘!A:I,9,FALSE)","v":"是"}]
[22,"长春市教育局","长春市实验中学","高中物理教师","初级专业技术岗位","财政拨款",1,"不限","统招本科学历学士学位或硕士研究生及以上学历学位","研究生：物理学(一级学科)、学科教学(物理)、课程与教学论(物理)\n本科：物理学类(一级学科)","报名邮箱：823219343@qq.com\n报名电话：0431-86801599\n18514317705","2022年7月31日前必须取得相应的教师资格证","长春市实验中学高中物理教师",{"$f":"VLOOKUP(M25,[1]未招聘!A:I,8,FALSE)","v":{"$error":"#N/A"}},{"$error":"#N/A"},{"$f":"VLOOKUP(M25,[1]未招聘!A:I,9,FALSE)","v":{"$error":"#N/A"}}]
[23,"长春市教育局","长春市第一中学","高中英语教师","初级专业技术岗位","财政拨款",1,"不限","统招本科学历学士学位或硕士研究生及以上学历学位","研究生：学科教学(英语)、外国语言文学(英语)\n本科：外国语言文学(英语)","报名邮箱：727174395@qq.com\n报名电话：0431-82887322","2022年7月31日前必须取得相应的教师资格证","长春市第一中学高中英语教师",{"$f":"VLOOKUP(M26,[1]未招聘!A:I,8,FALSE)","v":{"$error":"#N/A"}},{"$error":"#N/A"},{"$f":"VLOOKUP(M26,[1]未招聘!A:I,9,FALSE)","v":{"$error":"#N/A"}}]
[24,"长春市教育局","长春市第一中学","高中地理教师","初级专业技术岗位","财政拨款",1,"不限","统招本科学历学士学位或硕士研究生及以上学历学位","研究生：学科教学(地理)、地理学(一级学科)\n本科：地理科学类(一级学科)","报名邮箱：727174395@qq.com\n报名电话：0431-82887322","2022年7月31日前必须取得相应的教师资格证","长春市第一中学高中地理教师",{"$f":"VLOOKUP(M27,[1]未招聘!A:I,8,FALSE)","v":{"$error":"#N/A"}},{"$error":"#N/A"},{"$f":"VLOOKUP(M27,[1]未招聘!A:I,9,FALSE)","v":{"$error":"#N/A"}}]
[25,"长春市教育局","长春市第二中学","高中历史教师","初级专业技术岗位","财政拨款",1,"不限","硕士研究生及以上学历学位","研究生：历史学(门类)、学科教学(历史)、课程与教学论(历史)","报名邮箱：272039979@qq.com\n报名电话：0431-88563380","2022年7月31日前必须取得相应的教师资格证","长春市第二中学高中历史教师",{"$f":"VLOOKUP(M28,[1]未招聘!A:I,8,FALSE)","v":1},0,{"$f":"VLOOKUP(M28,[1]未招聘!A:I,9,FALSE)","v":"是"}]
[26,"长春市教育局","长春市第五中学","高中电教教师","初级专业技术岗位","财政拨款",1,"不限","统招本科学历学士学位或硕士研究生及以上学历学位","研究生：计算机科学与技术(一级学科)、计算机技术(专业学位)、教育技术学、现代教育技术(专业学位)\n本科：教育技术学、计算机类(一级学科)","报名邮箱：1520480127@qq.com\n报名电话：0431-82008357","2022年7月31日前必须取得相应的教师资格证","长春市第五中学高中电教教师",{"$f":"VLOOKUP(M29,[1]未招聘!A:I,8,FALSE)","v":1},0,{"$f":"VLOOKUP(M29,[1]未招聘!A:I,9,FALSE)","v":"是"}]
[27,"长春市教育局","长春市第五中学","高中化学教师","初级专业技术岗位","财政拨款",1,"不限","统招本科学历学士学位或硕士研究生及以上学历学位","研究生：化学(一级学科)、学科教学(化学)、课程与教学论(化学方向)\n本科：化学类(一级学科)","报名邮箱：1520480127@qq.com\n报名电话：0431-82008357","2022年7月31日前必须取得相应的教师资格证","长春市第五中学高中化学教师",{"$f":"VLOOKUP(M30,[1]未招聘!A:I,8,FALSE)","v":1},0,{"$f":"VLOOKUP(M30,[1]未招聘!A:I,9,FALSE)","v":"是"}]
[28,"长春市教育局","长春市第五中学","高中政治教师","初级专业技术岗位","财政拨款",1,"不限","统招本科学历学士学位或硕士研究生及以上学历学位","研究生：学科教学(思政)、政治学(一级学科)、马克思主义理论(一级学科)、课程与教学论(思政方向)\n本科：政治学类(一级学科)、马克思主义理论类(一级学科)","报名邮箱：1520480127@qq.com\n报名电话：0431-82008357","2022年7月31日前必须取得相应的教师资格证","长春市第五中学高中政治教师",{"$f":"VLOOKUP(M31,[1]未招聘!A:I,8,FALSE)","v":1},0,{"$f":"VLOOKUP(M31,[1]未招聘!A:I,9,FALSE)","v":"是"}]
[29,"长春市教育局","长春市第五中学","高中生物教师","初级专业技术岗位","财政拨款",1,"不限","统招本科学历学士学位或硕士研究生及以上学历学位","研究生：生物学(一级学科)、学科教学(生物)、课程与教学论(生物方向)\n本科：生物科学类(一级学科)","报名邮箱：1520480127@qq.com\n报名电话：0431-82008357","2022年7月31日前必须取得相应的教师资格证","长春市第五中学高中生物教师",{"$f":"VLOOKUP(M32,[1]未招聘!A:I,8,FALSE)","v":1},0,{"$f":"VLOOKUP(M32,[1]未招聘!A:I,9,FALSE)","v":"是"}]
[30,"长春市教育局","长春市第六中学","高中生物教师","初级专业技术岗位","财政拨款",1,"不限","硕士研究生及以上学历学位","研究生：生物学(一级学科)、学科教学(生物)","报名邮箱：409763846@qq.com\n报名电话：0431-8464249615043086555","2022年7月31日前必须取得相应的教师资格证","长春市第六中学高中生物教师",{"$f":"VLOOKUP(M33,[1]未招聘!A:I,8,FALSE)","v":1},0,{"$f":"VLOOKUP(M33,[1]未招聘!A:I,9,FALSE)","v":"是"}]
[31,"长春市教育局","长春市第七中学","高中数学教师","初级专业技术岗位","财政拨款",1,"不限","硕士研究生及以上学历学位","研究生：学科教学(数学)(专业学位)、课程与教学论(数学)、数学(一级学科)","报名邮箱：869554432@qq.com\n报名电话：0431-86119850","2022年7月31日前必须取得相应的教师资格证","长春市第七中学高中数学教师",{"$f":"VLOOKUP(M34,[1]未招聘!A:I,8,FALSE)","v":1},0,{"$f":"VLOOKUP(M34,[1]未招聘!A:I,9,FALSE)","v":"是"}]
[32,"长春市教育局","长春市第八中学","高中物理教师","初级专业技术岗位","财政拨款",1,"不限","统招本科学历学士学位或硕士研究生及以上学历学位","研究生：物理学(一级学科)、学科教学(物理)\n本科：物理学类(一级学科)","报名邮箱：16788998@qq.com\n报名电话：0431-88689157、13604338377","2022年7月31日前必须取得相应的教师资格证","长春市第八中学高中物理教师",{"$f":"VLOOKUP(M35,[1]未招聘!A:I,8,FALSE)","v":1},0,{"$f":"VLOOKUP(M35,[1]未招聘!A:I,9,FALSE)","v":"是"}]
[33,"长春市教育局","长春市第八中学","高中生物教师","初级专业技术岗位","财政拨款",1,"不限","统招本科学历学士学位或硕士研究生及以上学历学位","研究生：生物学(一级学科)、学科教学(生物)\n本科：生物科学类(一级学科)","报名邮箱：16788998@qq.com\n报名电话：0431-88689157、13604338377","2022年7月31日前必须取得相应的教师资格证","长春市第八中学高中生物教师",{"$f":"VLOOKUP(M36,[1]未招聘!A:I,8,FALSE)","v":{"$error":"#N/A"}},{"$error":"#N/A"},{"$f":"VLOOKUP(M36,[1]未招聘!A:I,9,FALSE)","v":{"$error":"#N/A"}}]
[34,"长春市教育局","长春市第八中学","高中化学教师","初级专业技术岗位","财政拨款",1,"不限","统招本科学历学士学位或硕士研究生及以上学历学位","研究生：化学(一级学科)、学科教学(化学)\n本科：化学类(一级学科)","报名邮箱：16788998@qq.com\n报名电话：0431-88689157、13604338377","2022年7月31日前必须取得相应的教师资格证","长春市第八中学高中化学教师",{"$f":"VLOOKUP(M37,[1]未招聘!A:I,8,FALSE)","v":1},0,{"$f":"VLOOKUP(M37,[1]未招聘!A:I,9,FALSE)","v":"是"}]
[35,"长春市教育局","长春市第八中学","高中历史教师","初级专业技术岗位","财政拨款",1,"不限","统招本科学历学士学位或硕士研究生及以上学历学位","研究生：中国史(一级学科)、世界史(一级学科)、学科教学(历史)\n本科：历史学类(一级学科)","报名邮箱：16788998@qq.com\n报名电话：0431-88689157、13604338377","2022年7月31日前必须取得相应的教师资格证","长春市第八中学高中历史教师",{"$f":"VLOOKUP(M38,[1]未招聘!A:I,8,FALSE)","v":1},0,{"$f":"VLOOKUP(M38,[1]未招聘!A:I,9,FALSE)","v":"是"}]
[36,"长春市教育局","长春市第八中学","高中心理教师","初级专业技术岗位","财政拨款",1,"不限","统招本科学历学士学位或硕士研究生及以上学历学位","研究生：心理健康教育(专业学位)、心理学(一级学科)\n本科：心理学类(一级学科)","报名邮箱：16788998@qq.com\n报名电话：0431-88689157、13604338377","2022年7月31日前必须取得相应的教师资格证","长春市第八中学高中心理教师",{"$f":"VLOOKUP(M39,[1]未招聘!A:I,8,FALSE)","v":{"$error":"#N/A"}},{"$error":"#N/A"},{"$f":"VLOOKUP(M39,[1]未招聘!A:I,9,FALSE)","v":{"$error":"#N/A"}}]
[37,"长春市教育局","长春市第八中学","高中体育教师","初级专业技术岗位","财政拨款",1,"不限","统招本科学历学士学位或硕士研究生及以上学历学位","研究生：学科教学(体育)、体育学(一级学科)\n本科：体育学类(一级学科)","报名邮箱：16788998@qq.com\n报名电话：0431-88689157、13604338377","2022年7月31日前必须取得相应的教师资格证","长春市第八中学高中体育教师",{"$f":"VLOOKUP(M40,[1]未招聘!A:I,8,FALSE)","v":{"$error":"#N/A"}},{"$error":"#N/A"},{"$f":"VLOOKUP(M40,[1]未招聘!A:I,9,FALSE)","v":{"$error":"#N/A"}}]
[38,"长春市教育局","长春市第八中学","高中信息教师","初级专业技术岗位","财政拨款",1,"不限","统招本科学历学士学位或硕士研究生及以上学历学位","研究生：计算机科学与技术(一级学科)、计算机技术(专业学位)、现代教育技术\n本科：教育技术学、计算机类(一级学科)","报名邮箱：16788998@qq.com\n报名电话：0431-88689157、13604338377","2022年7月31日前必须取得相应的教师资格证","长春市第八中学高中信息教师",{"$f":"VLOOKUP(M41,[1]未招聘!A:I,8,FALSE)","v":1},0,{"$f":"VLOOKUP(M41,[1]未招聘!A:I,9,FALSE)","v":"是"}]
[39,"长春市教育局","长春市第十中学","高中信息技术教师","初级专业技术岗位","财政拨款",1,"不限","统招本科学历学士学位或硕士研究生及以上学历学位","研究生：现代教育技术、计算机科学与技术(一级学科)\n本科：教育技术学、计算机类(一级学科)","报名邮箱：103707959@qq.com\n报名电话：13159515016","2022年7月31日前必须取得相应的教师资格证","长春市第十中学高中信息技术教师",{"$f":"VLOOKUP(M42,[1]未招聘!A:I,8,FALSE)","v":1},0,{"$f":"VLOOKUP(M42,[1]未招聘!A:I,9,FALSE)","v":"是"}]
[40,"长春市教育局","长春市第十九中学","高中英语教师","初级专业技术岗位","财政拨款",1,"不限","统招本科学历学士学位或硕士研究生及以上学历学位","研究生：英语语言文学、外国语言学及应用语(英语)、学科教学(英语)\n本科：英语","报名邮箱：462243286@qq.com\n报名电话：13844948812、15104454849","2022年7月31日前必须取得相应的教师资格证","长春市第十九中学高中英语教师",{"$f":"VLOOKUP(M43,[1]未招聘!A:I,8,FALSE)","v":{"$error":"#N/A"}},{"$error":"#N/A"},{"$f":"VLOOKUP(M43,[1]未招聘!A:I,9,FALSE)","v":{"$error":"#N/A"}}]
[41,"长春市教育局","长春市第十九中学","高中历史教师","初级专业技术岗位","财政拨款",1,"不限","统招本科学历学士学位或硕士研究生及以上学历学位","研究生：史学理论及史学史、历史地理学、专门史、中国古代史、中国近现代史、世界史(一级学科)、学科教学(历史)\n本科：历史学类(一级学科)","报名邮箱：462243286@qq.com\n报名电话：13844948812、15104454849","2022年7月31日前必须取得相应的教师资格证","长春市第十九中学高中历史教师",{"$f":"VLOOKUP(M44,[1]未招聘!A:I,8,FALSE)","v":1},0,{"$f":"VLOOKUP(M44,[1]未招聘!A:I,9,FALSE)","v":"是"}]
[42,"长春市教育局","长春市养正高级中学","高中物理教师","初级专业技术岗位","财政拨款",1,"不限","统招本科学历学士学位或硕士研究生及以上学历学位","研究生：课程与教学论、学科教学(物理)、物理学(一级学科)\n本科：物理学类(一级学科)","报名邮箱：785692219@qq.com\n报名电话：13894844145","2022年7月31日前必须取得相应的教师资格证","长春市养正高级中学高中物理教师",{"$f":"VLOOKUP(M45,[1]未招聘!A:I,8,FALSE)","v":1},0,{"$f":"VLOOKUP(M45,[1]未招聘!A:I,9,FALSE)","v":"是"}]
[43,"长春市教育局","长春希望高中","高中化学教师","初级专业技术岗位","财政拨款",1,"不限","统招本科学历学士学位或硕士研究生及以上学历学位","研究生：化学(一级学科)、课程与教学论(化学)、学科教学(化学)\n本科：化学类(一级学科)","报名邮箱：707065445@qq.com\n报名电话：0431-81120016","2022年7月31日前必须取得相应的教师资格证","长春希望高中高中化学教师",{"$f":"VLOOKUP(M46,[1]未招聘!A:I,8,FALSE)","v":{"$error":"#N/A"}},{"$error":"#N/A"},{"$f":"VLOOKUP(M46,[1]未招聘!A:I,9,FALSE)","v":{"$error":"#N/A"}}]
[44,"长春市教育局","长春市朝鲜族中学","高中数学教师","初级专业技术岗位","财政拨款",1,"不限","统招本科学历学士学位或硕士研究生及以上学历学位","研究生：基础数学、应用数学、计算数学、学科教学(数学)、课程与教学论(数学)\n本科：数学类(一级学科)","报名邮箱：404705713@qq.com\n报名电话：0431-85800706","1.应聘人员必须能够熟练用朝、汉双语与学生沟通交流。\n2.2022年7月31日前必须取得相应的教师资格证。","长春市朝鲜族中学高中数学教师",{"$f":"VLOOKUP(M47,[1]未招聘!A:I,8,FALSE)","v":1},0,{"$f":"VLOOKUP(M47,[1]未招聘!A:I,9,FALSE)","v":"是"}]
[45,"长春市教育局","长春艺术实验中学","高中数学教师","初级专业技术岗位","财政拨款",1,"不限","统招本科学历学士学位或硕士研究生及以上学历学位","研究生：基础数学、应用数学、计算数学、学科教学(数学)、课程与教学论(数学)\n本科：数学类(一级学科)","报名邮箱：506004878@qq.com\n报名电话：0431-85385570","2022年7月31日前必须取得相应的教师资格证","长春艺术实验中学高中数学教师",{"$f":"VLOOKUP(M48,[1]未招聘!A:I,8,FALSE)","v":1},0,{"$f":"VLOOKUP(M48,[1]未招聘!A:I,9,FALSE)","v":"是"}]
[46,"长春市教育局","长春艺术实验中学","高中英语教师","初级专业技术岗位","财政拨款",1,"不限","统招本科学历学士学位或硕士研究生及以上学历学位","研究生：学科教学(英语)、英语语言文学、课程与教学论(英语)\n本科：英语、商务英语","报名邮箱：506004878@qq.com\n报名电话：0431-85385570","2022年7月31日前必须取得相应的教师资格证","长春艺术实验中学高中英语教师",{"$f":"VLOOKUP(M49,[1]未招聘!A:I,8,FALSE)","v":1},0,{"$f":"VLOOKUP(M49,[1]未招聘!A:I,9,FALSE)","v":"是"}]
[47,"长春市教育局","长春艺术实验中学","高中信息技术教师","初级专业技术岗位","财政拨款",1,"不限","统招本科学历学士学位或硕士研究生及以上学历学位","研究生：计算机科学与技术(一级学科)、计算机技术(专业学位)、现代教育技术\n本科：教育技术学、计算机类(一级学科)","报名邮箱：506004878@qq.com\n报名电话：0431-85385570","2022年7月31日前必须取得相应的教师资格证","长春艺术实验中学高中信息技术教师",{"$f":"VLOOKUP(M50,[1]未招聘!A:I,8,FALSE)","v":1},0,{"$f":"VLOOKUP(M50,[1]未招聘!A:I,9,FALSE)","v":"是"}]
[48,"长春市教育局","长春市第一实验东光学校","初中音乐教师","初级专业技术岗位","财政拨款",1,"不限","统招本科学历学士学位或硕士研究生及以上学历学位","研究生：音乐与舞蹈学、学科教学(音乐)、课程与教学论(音乐方向)\n本科：音乐表演、作曲与作曲技术理论、舞蹈表演、舞蹈编导","报名邮箱：903639779@qq.com\n报名电话：0431-81055581、15604311969","2022年7月31日前必须取得相应的教师资格证","长春市第一实验东光学校初中音乐教师",{"$f":"VLOOKUP(M51,[1]未招聘!A:I,8,FALSE)","v":{"$error":"#N/A"}},{"$error":"#N/A"},{"$f":"VLOOKUP(M51,[1]未招聘!A:I,9,FALSE)","v":{"$error":"#N/A"}}]
[49,"长春市教育局","长春市第二中等专业学校","思想政治课教师","初级专业技术岗位","财政拨款",1,"不限","统招本科学历学士学位或硕士研究生及以上学历学位","研究生：学科教学(思政)、政治学(一级学科)、马克思主义理论(一级学科)\n本科：思想政治教育、马克思主义理论","报名邮箱：179307321@qq.com\n报名电话：0431-81863604、18166897776","2022年7月31日前必须取得相应的教师资格证","长春市第二中等专业学校思想政治课教师",{"$f":"VLOOKUP(M52,[1]未招聘!A:I,8,FALSE)","v":{"$error":"#N/A"}},{"$error":"#N/A"},{"$f":"VLOOKUP(M52,[1]未招聘!A:I,9,FALSE)","v":{"$error":"#N/A"}}]
[50,"长春市教育局","长春市少年宫","国学老师","初级专业技术岗位","财政拨款",1,"不限","硕士研究生及以上学历学位","研究生：中国语言文学(一级学科)","报名邮箱：464516562@qq.com\n报名电话：0431-81935025","2022年7月31日前必须取得相应的教师资格证","长春市少年宫国学老师",{"$f":"VLOOKUP(M53,[1]未招聘!A:I,8,FALSE)","v":1},0,{"$f":"VLOOKUP(M53,[1]未招聘!A:I,9,FALSE)","v":"是"}]
[51,"长春市朝阳区教育局","长春市朝阳区西安大路小学","小学音乐教师","初级专业技术岗位","财政拨款",1,"不限","统招本科学历学士学位或硕士研究生及以上学历学位","研究生：音乐与舞蹈学(一级学科)、学科教学(音乐)(专业学位)、课程与教学论(音乐)、音乐(专业学位)、舞蹈(专业学位)\n本科：音乐与舞蹈学类(一级学科)、艺术教育","报名邮箱：rsk5102036@163.com\n报名电话：0431-85102036","2022年7月31日前必须取得相应的教师资格证","长春市朝阳区西安大路小学小学音乐教师",{"$f":"VLOOKUP(M54,[1]未招聘!A:I,8,FALSE)","v":{"$error":"#N/A"}},{"$error":"#N/A"},{"$f":"VLOOKUP(M54,[1]未招聘!A:I,9,FALSE)","v":{"$error":"#N/A"}}]
[52,"长春市朝阳区教育局","长春市朝阳学校","小学数学教师","初级专业技术岗位","财政拨款",2,"不限","统招本科学历学士学位或硕士研究生及以上学历学位","研究生：数学(一级学科)、学科教学(数学)、课程与教学论(数学)、小学教育(数学)\n本科：数学类(一级学科)、小学教育(数学)","报名邮箱：rsk5102036@163.com\n报名电话：0431-85102036","2022年7月31日前必须取得相应的教师资格证",{"$f":"C55&D55","v":"长春市朝阳学校小学数学教师"},{"$f":"VLOOKUP(M55,[1]未招聘!A:I,8,FALSE)","v":2},{"$f":"N55-G55","v":0},{"$f":"VLOOKUP(M55,[1]未招聘!A:I,9,FALSE)","v":"是"}]
[53,"长春市朝阳区教育局","长春市朝阳区艳春小学","小学心理教师","初级专业技术岗位","财政拨款",1,"不限","统招本科学历学士学位或硕士研究生及以上学历学位","研究生：心理学(一级学科)、心理健康教育(专业学位)、应用心理(一级学科专业学位)\n本科：心理学类(一级学科)","报名邮箱：rsk5102036@163.com\n报名电话：0431-85102036","2022年7月31日前必须取得相应的教师资格证","长春市朝阳区艳春小学小学心理教师",{"$f":"VLOOKUP(M56,[1]未招聘!A:I,8,FALSE)","v":1},0,{"$f":"VLOOKUP(M56,[1]未招聘!A:I,9,FALSE)","v":"是"}]
[54,"长春市朝阳区教育局","长春市朝阳区艳春小学","小学语文教师","初级专业技术岗位","财政拨款",2,"不限","统招本科学历学士学位或硕士研究生及以上学历学位","研究生：中国语言文学(一级学科)、学科教学(语文)(专业学位)、汉语国际教育(一级学科专业学位)、课程与教学论(语文)、小学教育(语文)\n本科：中国语言文学类(一级学科)、小学教育(语文)","报名邮箱：rsk5102036@163.com\n报名电话：0431-85102036","2022年7月31日前必须取得相应的教师资格证","长春市朝阳区艳春小学小学语文教师",{"$f":"VLOOKUP(M57,[1]未招聘!A:I,8,FALSE)","v":2},0,{"$f":"VLOOKUP(M57,[1]未招聘!A:I,9,FALSE)","v":"是"}]
[55,"长春市朝阳区教育局","长春市朝阳区永春镇中心小学校","小学体育教师","初级专业技术岗位","财政拨款",1,"不限","统招本科学历学士学位或硕士研究生及以上学历学位","研究生：体育学(一级学科)、学科教学(体育)(专业学位)、体育(一级学科专业学位)、课程与教学论(体育)\n本科：体育学类(一级学科)","报名邮箱：rsk5102036@163.com\n报名电话：0431-85102036","2022年7月31日前必须取得相应的教师资格证","长春市朝阳区永春镇中心小学校小学体育教师",{"$f":"VLOOKUP(M58,[1]未招聘!A:I,8,FALSE)","v":1},0,{"$f":"VLOOKUP(M58,[1]未招聘!A:I,9,FALSE)","v":"是"}]
[56,"长春市朝阳区教育局","长春市朝阳区永春镇中心小学校","小学美术教师","初级专业技术岗位","财政拨款",1,"不限","统招本科学历学士学位或硕士研究生及以上学历学位","研究生：美术学(一级学科)、设计学(一级学科)、艺术学理论(一级学科)、美术(专业学位)、艺术设计(专业学位)、学科教学(美术)(专业学位)、课程与教学论(美术)\n本科：美术学类(一级学科)、设计学类(一级学科)、动画、艺术学理论类(一级学科)、艺术教育","报名邮箱：rsk5102036@163.com\n报名电话：0431-85102036","2022年7月31日前必须取得相应的教师资格证","长春市朝阳区永春镇中心小学校小学美术教师",{"$f":"VLOOKUP(M59,[1]未招聘!A:I,8,FALSE)","v":1},0,{"$f":"VLOOKUP(M59,[1]未招聘!A:I,9,FALSE)","v":"是"}]
[57,"长春市朝阳区教育局","长春市朝阳区富锋镇中心小学","小学美术教师","初级专业技术岗位","财政拨款",2,"不限","统招本科学历学士学位或硕士研究生及以上学历学位","研究生：美术学(一级学科)、设计学(一级学科)、艺术学理论(一级学科)、美术(专业学位)、艺术设计(专业学位)、学科教学(美术)(专业学位)、课程与教学论(美术)\n本科：美术学类(一级学科)、设计学类(一级学科)、动画、艺术学理论类(一级学科)、艺术教育","报名邮箱：rsk5102036@163.com\n报名电话：0431-85102036","2022年7月31日前必须取得相应的教师资格证","长春市朝阳区富锋镇中心小学小学美术教师",{"$f":"VLOOKUP(M60,[1]未招聘!A:I,8,FALSE)","v":2},0,{"$f":"VLOOKUP(M60,[1]未招聘!A:I,9,FALSE)","v":"是"}]
[58,"长春市朝阳区教育局","长春市朝阳区富锋镇中心小学","小学语文教师","初级专业技术岗位","财政拨款",2,"不限","统招本科学历学士学位或硕士研究生及以上学历学位","研究生：中国语言文学(一级学科)、学科教学(语文)(专业学位)、汉语国际教育(一级学科专业学位)、课程与教学论(语文)、小学教育(语文)\n本科：中国语言文学类(一级学科)、小学教育(语文)","报名邮箱：rsk5102036@163.com\n报名电话：0431-85102036","2022年7月31日前必须取得相应的教师资格证","长春市朝阳区富锋镇中心小学小学语文教师",{"$f":"VLOOKUP(M61,[1]未招聘!A:I,8,FALSE)","v":2},0,{"$f":"VLOOKUP(M61,[1]未招聘!A:I,9,FALSE)","v":"是"}]
[59,"长春市朝阳区教育局","长春市朝阳区富锋镇中心小学","小学数学教师","初级专业技术岗位","财政拨款",2,"不限","统招本科学历学士学位或硕士研究生及以上学历学位","研究生：数学(一级学科)、学科教学(数学)、课程与教学论(数学)、小学教育(数学)\n本科：数学类(一级学科)、小学教育(数学)","报名邮箱：rsk5102036@163.com\n报名电话：0431-85102036","2022年7月31日前必须取得相应的教师资格证","长春市朝阳区富锋镇中心小学小学数学教师",{"$f":"VLOOKUP(M62,[1]未招聘!A:I,8,FALSE)","v":2},0,{"$f":"VLOOKUP(M62,[1]未招聘!A:I,9,FALSE)","v":"是"}]
[60,"长春市朝阳区教育局","长春市朝阳区富锋镇中心小学","小学体育教师","初级专业技术岗位","财政拨款",1,"不限","统招本科学历学士学位或硕士研究生及以上学历学位","研究生：体育学(一级学科)、学科教学(体育)(专业学位)、体育(一级学科专业学位)、课程与教学论(体育)\n本科：体育学类(一级学科)","报名邮箱：rsk5102036@163.com\n报名电话：0431-85102036","2022年7月31日前必须取得相应的教师资格证","长春市朝阳区富锋镇中心小学小学体育教师",{"$f":"VLOOKUP(M63,[1]未招聘!A:I,8,FALSE)","v":1},0,{"$f":"VLOOKUP(M63,[1]未招聘!A:I,9,FALSE)","v":"是"}]
[61,"长春市朝阳区教育局","长春市朝阳区乐山镇中心小学校","小学音乐教师","初级专业技术岗位","财政拨款",1,"不限","统招本科学历学士学位或硕士研究生及以上学历学位","研究生：音乐与舞蹈学(一级学科)、学科教学(音乐)(专业学位)、课程与教学论(音乐)、音乐(专业学位)、舞蹈(专业学位)\n本科：音乐与舞蹈学类(一级学科)、艺术教育","报名邮箱：rsk5102036@163.com\n报名电话：0431-85102036","2022年7月31日前必须取得相应的教师资格证","长春市朝阳区乐山镇中心小学校小学音乐教师",{"$f":"VLOOKUP(M64,[1]未招聘!A:I,8,FALSE)","v":1},0,{"$f":"VLOOKUP(M64,[1]未招聘!A:I,9,FALSE)","v":"是"}]
[62,"长春市朝阳区教育局","长春市朝阳区乐山镇中心小学校","小学美术教师","初级专业技术岗位","财政拨款",1,"不限","统招本科学历学士学位或硕士研究生及以上学历学位","研究生：美术学(一级学科)、设计学(一级学科)、艺术学理论(一级学科)、美术(专业学位)、艺术设计(专业学位)、学科教学(美术)(专业学位)、课程与教学论(美术)\n本科：美术学类(一级学科)、设计学类(一级学科)、动画、艺术学理论类(一级学科)、艺术教育","报名邮箱：rsk5102036@163.com\n报名电话：0431-85102036","2022年7月31日前必须取得相应的教师资格证","长春市朝阳区乐山镇中心小学校小学美术教师",{"$f":"VLOOKUP(M65,[1]未招聘!A:I,8,FALSE)","v":1},0,{"$f":"VLOOKUP(M65,[1]未招聘!A:I,9,FALSE)","v":"是"}]
[63,"长春市朝阳区教育局","长春市朝阳区乐山镇中心小学校","小学道德与法治教师","初级专业技术岗位","财政拨款",1,"不限","统招本科学历学士学位或硕士研究生及以上学历学位","研究生：学科教学(思政)(专业学位)、政治学(一级学科)、马克思主义理论(一级学科)、课程与教学论(思政)\n本科：政治学类(一级学科)、马克思主义理论类(一级学科)","报名邮箱：rsk5102036@163.com\n报名电话：0431-85102036","2022年7月31日前必须取得相应的教师资格证","长春市朝阳区乐山镇中心小学校小学道德与法治教师",{"$f":"VLOOKUP(M66,[1]未招聘!A:I,8,FALSE)","v":1},0,{"$f":"VLOOKUP(M66,[1]未招聘!A:I,9,FALSE)","v":"是"}]
[64,"长春市朝阳区教育局","长春市朝阳区乐山镇中心小学校","小学科学教师","初级专业技术岗位","财政拨款",1,"不限","统招本科学历学士学位或硕士研究生及以上学历学位","研究生：生物学(一级学科)、生态学(一级学科)、学科教学(生物)(专业学位)、课程与教学论(生物)、物理学(一级学科)、学科教学(物理)(专业学位)、课程与教学论(物理)、化学(一级学科)、学科教学(化学)(专业学位)、课程与教学论(化学)、科学与技术教育(专业学位)\n本科：生物科学类(一级学科)、生物工程类(一级学科)、物理学类(一级学科)、化学类(一级学科)","报名邮箱：rsk5102036@163.com\n报名电话：0431-85102036","2022年7月31日前必须取得相应的教师资格证","长春市朝阳区乐山镇中心小学校小学科学教师",{"$f":"VLOOKUP(M67,[1]未招聘!A:I,8,FALSE)","v":1},0,{"$f":"VLOOKUP(M67,[1]未招聘!A:I,9,FALSE)","v":"是"}]
[65,"长春市朝阳区教育局","长春市第二十三中学校","初中体育教师","初级专业技术岗位","财政拨款",1,"不限","统招本科学历学士学位或硕士研究生及以上学历学位","研究生：体育学(一级学科)、学科教学(体育)(专业学位)、体育(一级学科专业学位)、课程与教学论(体育)\n本科：体育学类(一级学科)","报名邮箱：rsk5102036@163.com\n报名电话：0431-85102036","2022年7月31日前必须取得相应的教师资格证","长春市第二十三中学校初中体育教师",{"$f":"VLOOKUP(M68,[1]未招聘!A:I,8,FALSE)","v":1},0,{"$f":"VLOOKUP(M68,[1]未招聘!A:I,9,FALSE)","v":"是"}]
[66,"长春市朝阳区教育局","长春市第二十三中学校","初中语文教师","初级专业技术岗位","财政拨款",1,"不限","统招本科学历学士学位或硕士研究生及以上学历学位","研究生：中国语言文学(一级学科)、学科教学(语文)(专业学位)、汉语国际教育(一级学科专业学位)、课程与教学论(语文)\n本科：中国语言文学类(一级学科)","报名邮箱：rsk5102036@163.com\n报名电话：0431-85102036","2022年7月31日前必须取得相应的教师资格证","长春市第二十三中学校初中语文教师",{"$f":"VLOOKUP(M69,[1]未招聘!A:I,8,FALSE)","v":1},0,{"$f":"VLOOKUP(M69,[1]未招聘!A:I,9,FALSE)","v":"是"}]
[67,"长春市朝阳区教育局","长春市第一一二中学校","初中生物教师","初级专业技术岗位","财政拨款",1,"不限","统招本科学历学士学位或硕士研究生及以上学历学位","研究生：生物学(一级学科)、生态学(一级学科)、学科教学(生物)(专业学位)、课程与教学论(生物)\n本科：生物科学类(一级学科)、生物工程类(一级学科)","报名邮箱：rsk5102036@163.com\n报名电话：0431-85102036","2022年7月31日前必须取得相应的教师资格证","长春市第一一二中学校初中生物教师",{"$f":"VLOOKUP(M70,[1]未招聘!A:I,8,FALSE)","v":1},0,{"$f":"VLOOKUP(M70,[1]未招聘!A:I,9,FALSE)","v":"是"}]
[68,"长春市朝阳区教育局","长春市第一一二中学校","初中美术教师","初级专业技术岗位","财政拨款",1,"不限","统招本科学历学士学位或硕士研究生及以上学历学位","研究生：美术学(一级学科)、设计学(一级学科)、艺术学理论(一级学科)、美术(专业学位)、艺术设计(专业学位)、学科教学(美术)(专业学位)、课程与教学论(美术)\n本科：美术学类(一级学科)、设计学类(一级学科)、动画、艺术学理论类(一级学科)、艺术教育","报名邮箱：rsk5102036@163.com\n报名电话：0431-85102036","2022年7月31日前必须取得相应的教师资格证","长春市第一一二中学校初中美术教师",{"$f":"VLOOKUP(M71,[1]未招聘!A:I,8,FALSE)","v":1},0,{"$f":"VLOOKUP(M71,[1]未招聘!A:I,9,FALSE)","v":"是"}]
[69,"长春市朝阳区教育局","长春市第一一二中学校","初中地理教师","初级专业技术岗位","财政拨款",1,"不限","统招本科学历学士学位或硕士研究生及以上学历学位","研究生：地理学(一级学科)、学科教学(地理)(专业学位)、课程与教学论(地理)\n本科：地理科学类(一级学科)","报名邮箱：rsk5102036@163.com\n报名电话：0431-85102036","2022年7月31日前必须取得相应的教师资格证","长春市第一一二中学校初中地理教师",{"$f":"VLOOKUP(M72,[1]未招聘!A:I,8,FALSE)","v":1},0,{"$f":"VLOOKUP(M72,[1]未招聘!A:I,9,FALSE)","v":"是"}]
[70,"长春市朝阳区教育局","长春市朝阳区教师幼儿园","体能教师","初级专业技术岗位","财政拨款",2,"不限","统招本科学历学士学位或硕士研究生及以上学历学位","研究生：体育学(一级学科)、学科教学(体育)(专业学位)、体育(一级学科专业学位)、课程与教学论(体育)\n本科：体育学类(一级学科)","报名邮箱：rsk5102036@163.com\n报名电话：0431-85102036","2022年7月31日前必须取得相应的教师资格证","长春市朝阳区教师幼儿园体能教师",{"$f":"VLOOKUP(M73,[1]未招聘!A:I,8,FALSE)","v":2},0,{"$f":"VLOOKUP(M73,[1]未招聘!A:I,9,FALSE)","v":"是"}]
[71,"长春市朝阳区教育局","长春市朝阳区教师幼儿园","学前教育教师","初级专业技术岗位","财政拨款",7,"不限","统招本科学历学士学位或硕士研究生及以上学历学位","研究生：学前教育学、学前教育(专业学位)\n本科：学前教育","报名邮箱：rsk5102036@163.com\n报名电话：0431-85102036","2022年7月31日前必须取得相应的教师资格证","长春市朝阳区教师幼儿园学前教育教师",{"$f":"VLOOKUP(M74,[1]未招聘!A:I,8,FALSE)","v":7},0,{"$f":"VLOOKUP(M74,[1]未招聘!A:I,9,FALSE)","v":"是"}]
[72,"长春市宽城区教育局","长春市盛华学校中学部","初中语文教师","初级专业技术岗位","财政拨款",1,"不限","统招本科学历学士学位或硕士研究生及以上学历学位","研究生：中国语言文学(一级学科)、学科教学(语文)\n本科：中国语言文学类(一级学科)","报名邮箱：kcqrsk@163.com\n报名电话：0431-89990233","2022年7月31日前必须取得相应的教师资格证","长春市盛华学校中学部初中语文教师",{"$f":"VLOOKUP(M75,[1]未招聘!A:I,8,FALSE)","v":1},0,{"$f":"VLOOKUP(M75,[1]未招聘!A:I,9,FALSE)","v":"是"}]
[73,"长春市宽城区教育局","长春市盛华学校中学部","初中数学教师","初级专业技术岗位","财政拨款",1,"不限","统招本科学历学士学位或硕士研究生及以上学历学位","研究生：数学(一级学科)、学科教学(数学)\n本科：数学类(一级学科)","报名邮箱：kcqrsk@163.com\n报名电话：0431-89990233","2022年7月31日前必须取得相应的教师资格证","长春市盛华学校中学部初中数学教师",{"$f":"VLOOKUP(M76,[1]未招聘!A:I,8,FALSE)","v":1},0,{"$f":"VLOOKUP(M76,[1]未招聘!A:I,9,FALSE)","v":"是"}]
[74,"长春市宽城区教育局","长春市盛华学校中学部","初中英语教师","初级专业技术岗位","财政拨款",1,"不限","统招本科学历学士学位或硕士研究生及以上学历学位","研究生：外国语言文学(英语方向)、翻译(英语方向)、学科教学(英语)\n本科：外国语言文学类(英语方向)(一级学科)","报名邮箱：kcqrsk@163.com\n报名电话：0431-89990233","2022年7月31日前必须取得相应的教师资格证","长春市盛华学校中学部初中英语教师",{"$f":"VLOOKUP(M77,[1]未招聘!A:I,8,FALSE)","v":1},0,{"$f":"VLOOKUP(M77,[1]未招聘!A:I,9,FALSE)","v":"是"}]
[75,"长春市宽城区教育局","长春市盛华学校中学部","初中物理教师","初级专业技术岗位","财政拨款",1,"不限","统招本科学历学士学位或硕士研究生及以上学历学位","研究生：物理学(一级学科)、学科教学(物理)\n本科：物理学类(一级学科)","报名邮箱：kcqrsk@163.com\n报名电话：0431-89990233","2022年7月31日前必须取得相应的教师资格证","长春市盛华学校中学部初中物理教师",{"$f":"VLOOKUP(M78,[1]未招聘!A:I,8,FALSE)","v":1},0,{"$f":"VLOOKUP(M78,[1]未招聘!A:I,9,FALSE)","v":"是"}]
[76,"长春市宽城区教育局","长春市柳影中学小学部","小学数学教师","初级专业技术岗位","财政拨款",2,"不限","统招本科学历学士学位或硕士研究生及以上学历学位","研究生：数学(一级学科)、学科教学(数学)、小学教育(数学)\n本科：数学类、小学教育(数学)","报名邮箱：kcqrsk@163.com\n报名电话：0431-89990233","2022年7月31日前必须取得相应的教师资格证","长春市柳影中学小学部小学数学教师",{"$f":"VLOOKUP(M79,[1]未招聘!A:I,8,FALSE)","v":2},0,{"$f":"VLOOKUP(M79,[1]未招聘!A:I,9,FALSE)","v":"是"}]
[77,"长春市宽城区教育局","长春市宽城区实验学校中学部","初中语文教师","初级专业技术岗位","财政拨款",1,"不限","统招本科学历学士学位或硕士研究生及以上学历学位","研究生：中国语言文学(一级学科)、学科教学(语文)\n本科：中国语言文学类(一级学科)","报名邮箱：kcqrsk@163.com\n报名电话：0431-89990233","2022年7月31日前必须取得相应的教师资格证","长春市宽城区实验学校中学部初中语文教师",{"$f":"VLOOKUP(M80,[1]未招聘!A:I,8,FALSE)","v":1},0,{"$f":"VLOOKUP(M80,[1]未招聘!A:I,9,FALSE)","v":"是"}]
[78,"长春市宽城区教育局","长春市团山学校中学部","初中历史教师","初级专业技术岗位","财政拨款",1,"不限","统招本科学历学士学位或硕士研究生及以上学历学位","研究生：中国史(一级学科)、世界史(一级学科)、学科教学(历史)\n本科：历史学类(一级学科)","报名邮箱：kcqrsk@163.com\n报名电话：0431-89990233","2022年7月31日前必须取得相应的教师资格证","长春市团山学校中学部初中历史教师",{"$f":"VLOOKUP(M81,[1]未招聘!A:I,8,FALSE)","v":1},0,{"$f":"VLOOKUP(M81,[1]未招聘!A:I,9,FALSE)","v":"是"}]
[79,"长春市宽城区教育局","长春市团山学校中学部","初中地理教师","初级专业技术岗位","财政拨款",1,"不限","统招本科学历学士学位或硕士研究生及以上学历学位","研究生：地理学(一级学科)、学科教学(地理)\n本科：地理科学类(一级学科)","报名邮箱：kcqrsk@163.com\n报名电话：0431-89990233","2022年7月31日前必须取得相应的教师资格证","长春市团山学校中学部初中地理教师",{"$f":"VLOOKUP(M82,[1]未招聘!A:I,8,FALSE)","v":1},0,{"$f":"VLOOKUP(M82,[1]未招聘!A:I,9,FALSE)","v":"是"}]
[80,"长春市宽城区教育局","长春市宽城区实验小学","小学数学教师","初级专业技术岗位","财政拨款",1,"不限","统招本科学历学士学位或硕士研究生及以上学历学位","研究生：数学(一级学科)、学科教学(数学)、小学教育(数学)\n本科：数学类(一级学科)、小学教育(数学)","报名邮箱：kcqrsk@163.com\n报名电话：0431-89990233","2022年7月31日前必须取得相应的教师资格证","长春市宽城区实验小学小学数学教师",{"$f":"VLOOKUP(M83,[1]未招聘!A:I,8,FALSE)","v":1},0,{"$f":"VLOOKUP(M83,[1]未招聘!A:I,9,FALSE)","v":"是"}]
[81,"长春市宽城区教育局","长春市宽城区蓝田小学","小学语文教师","初级专业技术岗位","财政拨款",2,"不限","统招本科学历学士学位或硕士研究生及以上学历学位","研究生：中国语言文学(一级学科)、学科教学(语文)、小学教育(语文)\n本科：中国语言文学类(一级学科)、小学教育(语文)","报名邮箱：kcqrsk@163.com\n报名电话：0431-89990233","2022年7月31日前必须取得相应的教师资格证","长春市宽城区蓝田小学小学语文教师",{"$f":"VLOOKUP(M84,[1]未招聘!A:I,8,FALSE)","v":2},0,{"$f":"VLOOKUP(M84,[1]未招聘!A:I,9,FALSE)","v":"是"}]
[82,"长春市宽城区教育局","长春市蓝田中学","初中语文教师","初级专业技术岗位","财政拨款",2,"不限","统招本科学历学士学位或硕士研究生及以上学历学位","研究生：中国语言文学(一级学科)、学科教学(语文)\n本科：中国语言文学类(一级学科)","报名邮箱：kcqrsk@163.com\n报名电话：0431-89990233","2022年7月31日前必须取得相应的教师资格证","长春市蓝田中学初中语文教师",{"$f":"VLOOKUP(M85,[1]未招聘!A:I,8,FALSE)","v":2},0,{"$f":"VLOOKUP(M85,[1]未招聘!A:I,9,FALSE)","v":"是"}]
[83,"长春市宽城区教育局","长春市蓝田中学","初中数学教师","初级专业技术岗位","财政拨款",1,"不限","统招本科学历学士学位或硕士研究生及以上学历学位","研究生：数学(一级学科)、学科教学(数学)\n本科：数学类(一级学科)","报名邮箱：kcqrsk@163.com\n报名电话：0431-89990233","2022年7月31日前必须取得相应的教师资格证","长春市蓝田中学初中数学教师",{"$f":"VLOOKUP(M86,[1]未招聘!A:I,8,FALSE)","v":1},0,{"$f":"VLOOKUP(M86,[1]未招聘!A:I,9,FALSE)","v":"是"}]
[84,"长春市宽城区教育局","长春市基隆学校小学分部","小学数学教师","初级专业技术岗位","财政拨款",1,"不限","统招本科学历学士学位或硕士研究生及以上学历学位","研究生：数学(一级学科)、学科教学(数学)、小学教育(数学)\n本科：数学类(一级学科)、小学教育(数学)","报名邮箱：kcqrsk@163.com\n报名电话：0431-89990233","2022年7月31日前必须取得相应的教师资格证","长春市基隆学校小学分部小学数学教师",{"$f":"VLOOKUP(M87,[1]未招聘!A:I,8,FALSE)","v":1},0,{"$f":"VLOOKUP(M87,[1]未招聘!A:I,9,FALSE)","v":"是"}]
[85,"长春市宽城区教育局","长春市基隆学校小学分部","小学科学教师","初级专业技术岗位","财政拨款",1,"不限","统招本科学历学士学位或硕士研究生及以上学历学位","研究生：物理学(一级学科)、化学(一级学科)、生物学(一级学科)、学科教学(物理)、学科教学(化学)、学科教学(生物)\n本科：物理学类(一级学科)、化学类(一级学科)、生物科学类(一级学科)","报名邮箱：kcqrsk@163.com\n报名电话：0431-89990233","2022年7月31日前必须取得相应的教师资格证","长春市基隆学校小学分部小学科学教师",{"$f":"VLOOKUP(M88,[1]未招聘!A:I,8,FALSE)","v":{"$error":"#N/A"}},{"$error":"#N/A"},{"$f":"VLOOKUP(M88,[1]未招聘!A:I,9,FALSE)","v":{"$error":"#N/A"}}]
[86,"长春市宽城区教育局","长春市宽城区天津路小北校","小学语文教师","初级专业技术岗位","财政拨款",2,"不限","统招本科学历学士学位或硕士研究生及以上学历学位","研究生：中国语言文学(一级学科)、学科教学(语文)、小学教育(语文)\n本科：中国语言文学类(一级学科)、小学教育(语文)","报名邮箱：kcqrsk@163.com\n报名电话：0431-89990233","2022年7月31日前必须取得相应的教师资格证","长春市宽城区天津路小北校小学语文教师",{"$f":"VLOOKUP(M89,[1]未招聘!A:I,8,FALSE)","v":2},0,{"$f":"VLOOKUP(M89,[1]未招聘!A:I,9,FALSE)","v":"是"}]
[87,"长春市宽城区教育局","长春市宽城区天津路小北校","小学数学教师","初级专业技术岗位","财政拨款",1,"不限","统招本科学历学士学位或硕士研究生及以上学历学位","研究生：数学(一级学科)、学科教学(数学)、小学教育(数学)\n本科：数学类(一级学科)、小学教育(数学)","报名邮箱：kcqrsk@163.com\n报名电话：0431-89990233","2022年7月31日前必须取得相应的教师资格证","长春市宽城区天津路小北校小学数学教师",{"$f":"VLOOKUP(M90,[1]未招聘!A:I,8,FALSE)","v":1},0,{"$f":"VLOOKUP(M90,[1]未招聘!A:I,9,FALSE)","v":"是"}]
[88,"长春市宽城区教育局","长春市宽城区小南小学","小学语文教师","初级专业技术岗位","财政拨款",1,"不限","统招本科学历学士学位或硕士研究生及以上学历学位","研究生：中国语言文学(一级学科)、学科教学(语文)、小学教育(语文)\n本科：中国语言文学类(一级学科)、小学教育(语文)","报名邮箱：kcqrsk@163.com\n报名电话：0431-89990233","2022年7月31日前必须取得相应的教师资格证","长春市宽城区小南小学小学语文教师",{"$f":"VLOOKUP(M91,[1]未招聘!A:I,8,FALSE)","v":1},0,{"$f":"VLOOKUP(M91,[1]未招聘!A:I,9,FALSE)","v":"是"}]
[89,"长春市宽城区教育局","长春市宽城区小南小学","小学数学教师","初级专业技术岗位","财政拨款",1,"不限","统招本科学历学士学位或硕士研究生及以上学历学位","研究生：数学(一级学科)、学科教学(数学)、小学教育(数学)\n本科：数学类(一级学科)、小学教育(数学)","报名邮箱：kcqrsk@163.com\n报名电话：0431-89990233","2022年7月31日前必须取得相应的教师资格证","长春市宽城区小南小学小学数学教师",{"$f":"VLOOKUP(M92,[1]未招聘!A:I,8,FALSE)","v":1},0,{"$f":"VLOOKUP(M92,[1]未招聘!A:I,9,FALSE)","v":"是"}]
[90,"长春市南关区教育局","长春市南关区十一高中南溪学校","小学数学教师","初级专业技术岗位","财政拨款",1,"不限","统招本科学历学士学位或硕士研究生及以上学历学位","研究生：数学(一级学科)、学科教学(数学)、课程与教学论(数学)、小学教育(数学方向)\n本科：数学类(一级学科)、统计学类(一级学科)、小学教育(数学方向)","报名邮箱：ngqjyjrsk2020@126.com\n报名电话：0431-88958634","2022年7月31日前必须取得相应的教师资格证","长春市南关区十一高中南溪学校小学数学教师",{"$f":"VLOOKUP(M93,[1]未招聘!A:I,8,FALSE)","v":{"$error":"#N/A"}},{"$error":"#N/A"},{"$f":"VLOOKUP(M93,[1]未招聘!A:I,9,FALSE)","v":{"$error":"#N/A"}}]
[91,"长春市南关区教育局","长春市南关区十一高中南溪学校","小学体育教师","初级专业技术岗位","财政拨款",1,"不限","统招本科学历学士学位或硕士研究生及以上学历学位","研究生：体育学(一级学科)、学科教学(体育)、体育(一级学科)、课程与教学论(体育)\n本科：体育学类(一级学科)","报名邮箱：ngqjyjrsk2020@126.com\n报名电话：0431-88958634","2022年7月31日前必须取得相应的教师资格证","长春市南关区十一高中南溪学校小学体育教师",{"$f":"VLOOKUP(M94,[1]未招聘!A:I,8,FALSE)","v":{"$error":"#N/A"}},{"$error":"#N/A"},{"$f":"VLOOKUP(M94,[1]未招聘!A:I,9,FALSE)","v":{"$error":"#N/A"}}]
[92,"长春市南关区教育局","长春市南关区十一高中南溪学校","小学美术教师","初级专业技术岗位","财政拨款",1,"不限","统招本科学历学士学位或硕士研究生及以上学历学位","研究生：美术学(一级学科)、设计学(一级学科)、艺术学理论(一级学科)、美术、艺术设计、学科教学(美术)、课程与教学论(美术)\n本科：美术学类(一级学科)、设计学类(一级学科)、动画、戏剧影视美术设计、艺术学理论类(一级学科)、艺术教育","报名邮箱：ngqjyjrsk2020@126.com\n报名电话：0431-88958634","2022年7月31日前必须取得相应的教师资格证","长春市南关区十一高中南溪学校小学美术教师",{"$f":"VLOOKUP(M95,[1]未招聘!A:I,8,FALSE)","v":{"$error":"#N/A"}},{"$error":"#N/A"},{"$f":"VLOOKUP(M95,[1]未招聘!A:I,9,FALSE)","v":{"$error":"#N/A"}}]
[93,"长春市南关区教育局","长春市南关区十一高中南溪学校","初中物理教师","初级专业技术岗位","财政拨款",1,"不限","统招本科学历学士学位或硕士研究生及以上学历学位","研究生：物理学(一级学科)、学科教学(物理)、课程与教学论(物理)\n本科：物理学类(一级学科)","报名邮箱：ngqjyjrsk2020@126.com\n报名电话：0431-88958634","2022年7月31日前必须取得相应的教师资格证","长春市南关区十一高中南溪学校初中物理教师",{"$f":"VLOOKUP(M96,[1]未招聘!A:I,8,FALSE)","v":{"$error":"#N/A"}},{"$error":"#N/A"},{"$f":"VLOOKUP(M96,[1]未招聘!A:I,9,FALSE)","v":{"$error":"#N/A"}}]
[94,"长春市南关区教育局","长春市南关区十一高中南溪学校","初中化学教师","初级专业技术岗位","财政拨款",2,"不限","统招本科学历学士学位或硕士研究生及以上学历学位","研究生：化学(一级学科)、学科教学(化学)、课程与教学论(化学)、材料物理与化学、应用化学\n本科：化学类(一级学科)","报名邮箱：ngqjyjrsk2020@126.com\n报名电话：0431-88958634","2022年7月31日前必须取得相应的教师资格证","长春市南关区十一高中南溪学校初中化学教师",{"$f":"VLOOKUP(M97,[1]未招聘!A:I,8,FALSE)","v":{"$error":"#N/A"}},{"$error":"#N/A"},{"$f":"VLOOKUP(M97,[1]未招聘!A:I,9,FALSE)","v":{"$error":"#N/A"}}]
[95,"长春市南关区教育局","长春市南关区十一高中南溪学校","初中地理教师","初级专业技术岗位","财政拨款",1,"不限","统招本科学历学士学位或硕士研究生及以上学历学位","研究生：地理学(一级学科)、学科教学(地理)\n本科：地理科学类(一级学科)","报名邮箱：ngqjyjrsk2020@126.com\n报名电话：0431-88958634","2022年7月31日前必须取得相应的教师资格证","长春市南关区十一高中南溪学校初中地理教师",{"$f":"VLOOKUP(M98,[1]未招聘!A:I,8,FALSE)","v":{"$error":"#N/A"}},{"$error":"#N/A"},{"$f":"VLOOKUP(M98,[1]未招聘!A:I,9,FALSE)","v":{"$error":"#N/A"}}]
[96,"长春市二道区教育局","长春国际物流经济开发区实验学校","初中道德与法治教师","初级专业技术岗位","财政拨款",1,"不限","统招本科学历学士学位或硕士研究生及以上学历学位","研究生：学科教学(思政)、思想政治教育、课程与教学论(思政方向)\n本科：思想政治教育","报名邮箱：504895474@qq.com                     报名电话：0431-84941448","2022年7月31日前必须取得相应的教师资格证","长春国际物流经济开发区实验学校初中道德与法治教师",{"$f":"VLOOKUP(M99,[1]未招聘!A:I,8,FALSE)","v":1},0,{"$f":"VLOOKUP(M99,[1]未招聘!A:I,9,FALSE)","v":"是"}]
[97,"长春市二道区教育局","长春国际物流经济开发区实验学校","初中地理教师","初级专业技术岗位","财政拨款",1,"不限","统招本科学历学士学位或硕士研究生及以上学历学位","研究生：学科教学(地理)、自然地理学、人文地理学、地图学与地理信息系统、课程与教学论(地理方向)\n本科：地理科学、自然地理与资源环境、人文地理与城乡规划、地理信息科学","报名邮箱：504895474@qq.com                     报名电话：0431-84941448","2022年7月31日前必须取得相应的教师资格证","长春国际物流经济开发区实验学校初中地理教师",{"$f":"VLOOKUP(M100,[1]未招聘!A:I,8,FALSE)","v":1},0,{"$f":"VLOOKUP(M100,[1]未招聘!A:I,9,FALSE)","v":"是"}]
[98,"长春市二道区教育局","长春国际物流经济开发区实验学校","初中生物教师","初级专业技术岗位","财政拨款",1,"不限","统招本科学历学士学位或硕士研究生及以上学历学位","研究生：学科教学(生物)、植物学、动物学、生理学、水生生物学、微生物学、神经生物学、遗传学、发育生物学、细胞生物学、生物化学与分子生物学、生物物理学、课程与教学论(生物方向)、生态学\n本科：生物科学、生物技术、生物信息学、生态学","报名邮箱：504895474@qq.com                     报名电话：0431-84941448","2022年7月31日前必须取得相应的教师资格证","长春国际物流经济开发区实验学校初中生物教师",{"$f":"VLOOKUP(M101,[1]未招聘!A:I,8,FALSE)","v":1},0,{"$f":"VLOOKUP(M101,[1]未招聘!A:I,9,FALSE)","v":"是"}]
[99,"长春市二道区教育局","长春国际物流经济开发区实验学校","初中物理教师","初级专业技术岗位","财政拨款",2,"不限","统招本科学历学士学位或硕士研究生及以上学历学位","研究生：学科教学(物理)、理论物理、粒子物理与原子核物理、原子与分子物理、等离子体物理、凝聚态物理、声学、光学、无线电物理、课程与教学论(物理方向)\n本科：物理学、应用物理学","报名邮箱：504895474@qq.com                     报名电话：0431-84941448","2022年7月31日前必须取得相应的教师资格证","长春国际物流经济开发区实验学校初中物理教师",{"$f":"VLOOKUP(M102,[1]未招聘!A:I,8,FALSE)","v":2},0,{"$f":"VLOOKUP(M102,[1]未招聘!A:I,9,FALSE)","v":"是"}]
[100,"长春市二道区教育局","长春国际物流经济开发区实验学校","初中语文教师","初级专业技术岗位","财政拨款",1,"不限","统招本科学历学士学位或硕士研究生及以上学历学位","研究生：学科教学(语文)、语言学及应用语言学、汉语言文字学、中国古典文献学、中国古代文学、中国现当代文学、比较文学与世界文学、汉语国际教育、课程与教学论(语文方向)\n本科：汉语言文学、汉语言、汉语国际教育、古典文献学","报名邮箱：504895474@qq.com                     报名电话：0431-84941448","2022年7月31日前必须取得相应的教师资格证","长春国际物流经济开发区实验学校初中语文教师",{"$f":"VLOOKUP(M103,[1]未招聘!A:I,8,FALSE)","v":1},0,{"$f":"VLOOKUP(M103,[1]未招聘!A:I,9,FALSE)","v":"是"}]
[101,"长春市二道区教育局","长春国际物流经济开发区实验学校","初中数学教师","初级专业技术岗位","财政拨款",3,"不限","统招本科学历学士学位或硕士研究生及以上学历学位","研究生：学科教学(数学)、基础数学、计算数学、概率论与数理统计、应用数学、运筹学与控制论、课程与教学论(数学方向)\n本科：数学与应用数学、信息与计算科学、数理基础科学","报名邮箱：504895474@qq.com                     报名电话：0431-84941448","2022年7月31日前必须取得相应的教师资格证","长春国际物流经济开发区实验学校初中数学教师",{"$f":"VLOOKUP(M104,[1]未招聘!A:I,8,FALSE)","v":3},0,{"$f":"VLOOKUP(M104,[1]未招聘!A:I,9,FALSE)","v":"是"}]
[102,"长春市二道区教育局","长春国际物流经济开发区实验学校","初中英语教师","初级专业技术岗位","财政拨款",1,"不限","统招本科学历学士学位或硕士研究生及以上学历学位","研究生：学科教学(英语)、英语语言文学、外国语言学及应用语言学(英语)、课程与教学论(英语方向)\n本科：英语、商务英语","报名邮箱：504895474@qq.com                     报名电话：0431-84941448","2022年7月31日前必须取得相应的教师资格证","长春国际物流经济开发区实验学校初中英语教师",{"$f":"VLOOKUP(M105,[1]未招聘!A:I,8,FALSE)","v":1},0,{"$f":"VLOOKUP(M105,[1]未招聘!A:I,9,FALSE)","v":"是"}]
[103,"长春市二道区教育局","长春国际物流经济开发区实验学校","初中音乐教师","初级专业技术岗位","财政拨款",1,"不限","统招本科学历学士学位或硕士研究生及以上学历学位","研究生：学科教学(音乐)、音乐、音乐学、舞蹈学、课程与教学论(音乐方向)\n本科：音乐表演、音乐学、作曲与作曲技术理论、舞蹈表演、舞蹈学、舞蹈编导","报名邮箱：504895474@qq.com                     报名电话：0431-84941448","2022年7月31日前必须取得相应的教师资格证","长春国际物流经济开发区实验学校初中音乐教师",{"$f":"VLOOKUP(M106,[1]未招聘!A:I,8,FALSE)","v":1},0,{"$f":"VLOOKUP(M106,[1]未招聘!A:I,9,FALSE)","v":"是"}]
[104,"长春市二道区教育局","长春国际物流经济开发区实验学校","初中体育教师","初级专业技术岗位","财政拨款",2,"不限","统招本科学历学士学位或硕士研究生及以上学历学位","研究生：学科教学(体育)、体育人文社会学、运动人体科学、体育教育训练学、民族传统体育学、体育教学、运动训练、竞赛组织、社会体育指导、课程与教学论(体育方向)\n本科：体育教育、运动训练、社会体育指导与管理、武术与民族传统体育、运动人体科学、运动康复、休闲体育","报名邮箱：504895474@qq.com                     报名电话：0431-84941448","2022年7月31日前必须取得相应的教师资格证","长春国际物流经济开发区实验学校初中体育教师",{"$f":"VLOOKUP(M107,[1]未招聘!A:I,8,FALSE)","v":2},0,{"$f":"VLOOKUP(M107,[1]未招聘!A:I,9,FALSE)","v":"是"}]
[105,"长春市二道区教育局","长春市第五十八中学","初中道德与法治教师","初级专业技术岗位","财政拨款",1,"不限","统招本科学历学士学位或硕士研究生及以上学历学位","研究生：学科教学(思政)、思想政治教育、课程与教学论(思政方向)\n本科：思想政治教育","报名邮箱：504895474@qq.com                     报名电话：0431-84941448","2022年7月31日前必须取得相应的教师资格证","长春市第五十八中学初中道德与法治教师",{"$f":"VLOOKUP(M108,[1]未招聘!A:I,8,FALSE)","v":1},0,{"$f":"VLOOKUP(M108,[1]未招聘!A:I,9,FALSE)","v":"是"}]
[106,"长春市二道区教育局","长春市第五十二中学","初中道德与法治教师","初级专业技术岗位","财政拨款",1,"不限","统招本科学历学士学位或硕士研究生及以上学历学位","研究生：学科教学(思政)、思想政治教育、课程与教学论(思政方向)\n本科：思想政治教育","报名邮箱：504895474@qq.com                     报名电话：0431-84941448","2022年7月31日前必须取得相应的教师资格证","长春市第五十二中学初中道德与法治教师",{"$f":"VLOOKUP(M109,[1]未招聘!A:I,8,FALSE)","v":1},0,{"$f":"VLOOKUP(M109,[1]未招聘!A:I,9,FALSE)","v":"是"}]
[107,"长春市二道区教育局","长春市第五十三中学","初中历史教师","初级专业技术岗位","财政拨款",1,"不限","统招本科学历学士学位或硕士研究生及以上学历学位","研究生：学科教学(历史)、中国古代史、中国近现代史、世界史、课程与教学论(历史方向)\n本科：历史学、世界史","报名邮箱：504895474@qq.com                     报名电话：0431-84941448","2022年7月31日前必须取得相应的教师资格证","长春市第五十三中学初中历史教师",{"$f":"VLOOKUP(M110,[1]未招聘!A:I,8,FALSE)","v":1},0,{"$f":"VLOOKUP(M110,[1]未招聘!A:I,9,FALSE)","v":"是"}]
[108,"长春市二道区教育局","长春市第五十三中学","初中道德与法治教师","初级专业技术岗位","财政拨款",1,"不限","统招本科学历学士学位或硕士研究生及以上学历学位","研究生：学科教学(思政)、思想政治教育、课程与教学论(思政方向)\n本科：思想政治教育","报名邮箱：504895474@qq.com                     报名电话：0431-84941448","2022年7月31日前必须取得相应的教师资格证","长春市第五十三中学初中道德与法治教师",{"$f":"VLOOKUP(M111,[1]未招聘!A:I,8,FALSE)","v":1},0,{"$f":"VLOOKUP(M111,[1]未招聘!A:I,9,FALSE)","v":"是"}]
[109,"长春市二道区教育局","长春市第一外国语中学（一〇八学校）","小学美术教师","初级专业技术岗位","财政拨款",1,"不限","统招本科学历学士学位或硕士研究生及以上学历学位","研究生：美术学(一级学科)、设计学(一级学科)、艺术学理论(一级学科)、美术(专业学位)、艺术设计(专业学位)、学科教学(美术)、课程与教学论(美术方向)\n本科：美术学类(一级学科)、设计学类(一级学科)、动画、戏剧影视美术设计、艺术学理论类(一级学科)","报名邮箱：504895474@qq.com                     报名电话：0431-84941448","2022年7月31日前必须取得相应的教师资格证","长春市第一外国语中学（一〇八学校）小学美术教师",{"$f":"VLOOKUP(M112,[1]未招聘!A:I,8,FALSE)","v":{"$error":"#N/A"}},{"$error":"#N/A"},{"$f":"VLOOKUP(M112,[1]未招聘!A:I,9,FALSE)","v":{"$error":"#N/A"}}]
[110,"长春市二道区教育局","长春市第一外国语中学（一〇八学校）","初中道德与法治教师","初级专业技术岗位","财政拨款",1,"不限","统招本科学历学士学位或硕士研究生及以上学历学位","研究生：学科教学(思政)、思想政治教育、课程与教学论(思政方向)\n本科：思想政治教育","报名邮箱：504895474@qq.com                     报名电话：0431-84941448","2022年7月31日前必须取得相应的教师资格证",{"$f":"C113&D113","v":"长春市第一外国语中学（一〇八学校）初中道德与法治教师"},{"$f":"VLOOKUP(M113,[1]未招聘!A:I,8,FALSE)","v":1},{"$f":"N113-G113","v":0},{"$f":"VLOOKUP(M113,[1]未招聘!A:I,9,FALSE)","v":"是"}]
[111,"长春市二道区教育局","长春市二道区腰十小学校","小学体育教师","初级专业技术岗位","财政拨款",1,"不限","统招本科学历学士学位或硕士研究生及以上学历学位","研究生：学科教学(体育)、体育人文社会学、运动人体科学、体育教育训练学、民族传统体育学、体育教学、运动训练、竞赛组织、社会体育指导、课程与教学论(体育方向)\n本科：体育教育、运动训练、社会体育指导与管理、武术与民族传统体育、运动人体科学、运动康复、休闲体育","报名邮箱：504895474@qq.com                     报名电话：0431-84941448","2022年7月31日前必须取得相应的教师资格证","长春市二道区腰十小学校小学体育教师",{"$f":"VLOOKUP(M114,[1]未招聘!A:I,8,FALSE)","v":1},0,{"$f":"VLOOKUP(M114,[1]未招聘!A:I,9,FALSE)","v":"是"}]
[112,"长春市二道区教育局","长春市二道区育行特殊教育学校","特殊教育教师","初级专业技术岗位","财政拨款",1,"不限","统招本科学历学士学位或硕士研究生及以上学历学位","研究生：特殊教育学\n本科：特殊教育","报名邮箱：504895474@qq.com                     报名电话：0431-84941448","2022年7月31日前必须取得相应的教师资格证","长春市二道区育行特殊教育学校特殊教育教师",{"$f":"VLOOKUP(M115,[1]未招聘!A:I,8,FALSE)","v":1},0,{"$f":"VLOOKUP(M115,[1]未招聘!A:I,9,FALSE)","v":"是"}]
[113,"长春市二道区教育局","长春市二道区长江学校","小学数学教师","初级专业技术岗位","财政拨款",2,"不限","统招本科学历学士学位或硕士研究生及以上学历学位","研究生：学科教学(数学)、基础数学、计算数学、概率论与数理统计、应用数学、运筹学与控制论、课程与教学论(数学方向)\n本科：数学与应用数学、信息与计算科学、数理基础科学","报名邮箱：504895474@qq.com                     报名电话：0431-84941448","2022年7月31日前必须取得相应的教师资格证","长春市二道区长江学校小学数学教师",{"$f":"VLOOKUP(M116,[1]未招聘!A:I,8,FALSE)","v":2},0,{"$f":"VLOOKUP(M116,[1]未招聘!A:I,9,FALSE)","v":"是"}]
[114,"长春市二道区教育局","长春市二道区长江学校","小学音乐教师","初级专业技术岗位","财政拨款",1,"不限","统招本科学历学士学位或硕士研究生及以上学历学位","研究生：学科教学(音乐)、音乐、音乐学、舞蹈学、课程与教学论(音乐方向)\n本科：音乐表演、音乐学、作曲与作曲技术理论、舞蹈表演、舞蹈学、舞蹈编导","报名邮箱：504895474@qq.com                     报名电话：0431-84941448","2022年7月31日前必须取得相应的教师资格证","长春市二道区长江学校小学音乐教师",{"$f":"VLOOKUP(M117,[1]未招聘!A:I,8,FALSE)","v":1},0,{"$f":"VLOOKUP(M117,[1]未招聘!A:I,9,FALSE)","v":"是"}]
[115,"长春市二道区教育局","长春市二道区长江学校","小学道德与法治教师","初级专业技术岗位","财政拨款",2,"不限","统招本科学历学士学位或硕士研究生及以上学历学位","研究生：学科教学(思政)、思想政治教育、课程与教学论(思政方向)\n本科：思想政治教育","报名邮箱：504895474@qq.com                     报名电话：0431-84941448","2022年7月31日前必须取得相应的教师资格证","长春市二道区长江学校小学道德与法治教师",{"$f":"VLOOKUP(M118,[1]未招聘!A:I,8,FALSE)","v":2},0,{"$f":"VLOOKUP(M118,[1]未招聘!A:I,9,FALSE)","v":"是"}]
[116,"长春经济技术开发区文教局","长春经济技术开发区育隆学校","初中语文教师","初级专业技术岗位","财政拨款",1,"不限","统招本科学历学士学位或硕士研究生及以上学历学位","研究生：中国语言文学(一级学科)、学科教学(语文)、课程与教学论(语文方向)\n本科：中国语言文学类(一级学科)","报名邮箱：499563593@qq.com\n报名电话：0431-84612896","2022年7月31日前必须取得相应的教师资格证","长春经济技术开发区育隆学校初中语文教师",{"$f":"VLOOKUP(M119,[1]未招聘!A:I,8,FALSE)","v":1},0,{"$f":"VLOOKUP(M119,[1]未招聘!A:I,9,FALSE)","v":"是"}]
[117,"长春经济技术开发区文教局","长春经济技术开发区育隆学校","初中数学教师","初级专业技术岗位","财政拨款",1,"不限","统招本科学历学士学位或硕士研究生及以上学历学位","研究生：学科教学(数学)、基础数学、计算数学、概率论与数理统计、应用数学、统计学\n本科：数学与应用数学、信息与计算科学、数理基础科学、统计学、应用统计学","报名邮箱：499563593@qq.com\n报名电话：0431-84612896","2022年7月31日前必须取得相应的教师资格证","长春经济技术开发区育隆学校初中数学教师",{"$f":"VLOOKUP(M120,[1]未招聘!A:I,8,FALSE)","v":1},0,{"$f":"VLOOKUP(M120,[1]未招聘!A:I,9,FALSE)","v":"是"}]
[118,"长春经济技术开发区文教局","长春经济技术开发区育隆学校","初中英语教师","初级专业技术岗位","财政拨款",1,"不限","统招本科学历学士学位或硕士研究生及以上学历学位","研究生：外国语言文学(英语方向)、翻译(英语方向)、学科教学(英语)、课程与教学论(英语)\n本科：外国语言文学类(英语方向)","报名邮箱：499563593@qq.com\n报名电话：0431-84612896","2022年7月31日前必须取得相应的教师资格证","长春经济技术开发区育隆学校初中英语教师",{"$f":"VLOOKUP(M121,[1]未招聘!A:I,8,FALSE)","v":1},0,{"$f":"VLOOKUP(M121,[1]未招聘!A:I,9,FALSE)","v":"是"}]
[119,"长春经济技术开发区文教局","长春经济技术开发区洋浦学校","初中语文教师","初级专业技术岗位","财政拨款",1,"不限","统招本科学历学士学位或硕士研究生及以上学历学位","研究生：中国语言文学(一级学科)、学科教学(语文)、课程与教学论(语文方向)\n本科：中国语言文学类(一级学科)","报名邮箱：499563593@qq.com\n报名电话：0431-84612896","2022年7月31日前必须取得相应的教师资格证","长春经济技术开发区洋浦学校初中语文教师",{"$f":"VLOOKUP(M122,[1]未招聘!A:I,8,FALSE)","v":1},0,{"$f":"VLOOKUP(M122,[1]未招聘!A:I,9,FALSE)","v":"是"}]
[120,"长春经济技术开发区文教局","长春经济技术开发区洋浦学校","初中数学教师","初级专业技术岗位","财政拨款",1,"不限","统招本科学历学士学位或硕士研究生及以上学历学位","研究生：学科教学(数学)、基础数学、计算数学、概率论与数理统计、应用数学、统计学\n本科：数学与应用数学、信息与计算科学、数理基础科学、统计学、应用统计学","报名邮箱：499563593@qq.com\n报名电话：0431-84612896","2022年7月31日前必须取得相应的教师资格证","长春经济技术开发区洋浦学校初中数学教师",{"$f":"VLOOKUP(M123,[1]未招聘!A:I,8,FALSE)","v":1},0,{"$f":"VLOOKUP(M123,[1]未招聘!A:I,9,FALSE)","v":"是"}]
[121,"长春经济技术开发区文教局","长春经济技术开发区洋浦学校","初中历史教师","初级专业技术岗位","财政拨款",1,"不限","统招本科学历学士学位或硕士研究生及以上学历学位","研究生：历史学(门类)、学科教学(历史)\n本科：历史学类(一级学科)","报名邮箱：499563593@qq.com\n报名电话：0431-84612896","2022年7月31日前必须取得相应的教师资格证","长春经济技术开发区洋浦学校初中历史教师",{"$f":"VLOOKUP(M124,[1]未招聘!A:I,8,FALSE)","v":{"$error":"#N/A"}},{"$error":"#N/A"},{"$f":"VLOOKUP(M124,[1]未招聘!A:I,9,FALSE)","v":{"$error":"#N/A"}}]
[122,"长春经济技术开发区文教局","长春经济技术开发区力行学校","小学语文教师","初级专业技术岗位","财政拨款",1,"不限","统招本科学历学士学位或硕士研究生及以上学历学位","研究生：中国语言文学(一级学科)、学科教学(语文)、汉语国际教育(一级学科)、课程与教学论(语文)、小学教育(语文)\n本科：中国语言文学类(一级学科)、小学教育(语文)","报名邮箱：499563593@qq.com\n报名电话：0431-84612896","2022年7月31日前必须取得相应的教师资格证","长春经济技术开发区力行学校小学语文教师",{"$f":"VLOOKUP(M125,[1]未招聘!A:I,8,FALSE)","v":1},0,{"$f":"VLOOKUP(M125,[1]未招聘!A:I,9,FALSE)","v":"是"}]
[123,"长春经济技术开发区文教局","长春经济技术开发区力行学校","小学数学教师","初级专业技术岗位","财政拨款",1,"不限","统招本科学历学士学位或硕士研究生及以上学历学位","研究生：数学(一级学科)、学科教学(数学)、统计学(一级学科)、应用统计(一级学科)、课程与教学论(数学)、小学教育(数学)\n本科：数学类(一级学科)、统计学类(一级学科)、小学教育(数学)","报名邮箱：499563593@qq.com\n报名电话：0431-84612896","2022年7月31日前必须取得相应的教师资格证","长春经济技术开发区力行学校小学数学教师",{"$f":"VLOOKUP(M126,[1]未招聘!A:I,8,FALSE)","v":1},0,{"$f":"VLOOKUP(M126,[1]未招聘!A:I,9,FALSE)","v":"是"}]
[124,"长春经济技术开发区文教局","长春经济技术开发区昆山学校","小学语文教师","初级专业技术岗位","财政拨款",1,"不限","统招本科学历学士学位或硕士研究生及以上学历学位","研究生：中国语言文学(一级学科)、学科教学(语文)、汉语国际教育(一级学科)、课程与教学论(语文)、小学教育(语文)\n本科：中国语言文学类(一级学科)、小学教育(语文)","报名邮箱：499563593@qq.com\n报名电话：0431-84612896","2022年7月31日前必须取得相应的教师资格证","长春经济技术开发区昆山学校小学语文教师",{"$f":"VLOOKUP(M127,[1]未招聘!A:I,8,FALSE)","v":1},0,{"$f":"VLOOKUP(M127,[1]未招聘!A:I,9,FALSE)","v":"是"}]
[125,"长春汽车经济技术开发区教育局","长春汽车经济技术开发区东风幼儿园","幼儿教师","初级专业技术岗位","财政拨款",2,"不限","统招本科学历学士学位或硕士研究生及以上学历学位","研究生：学前教育、学前教育学\n本科：学前教育","报名邮箱：qkqjyjrsk@126.com\n报名电话：0431-85905162","1.2022年7月31日前必须取得相应的教师资格证\n2.区管校用，二次分配","长春汽车经济技术开发区东风幼儿园幼儿教师",{"$f":"VLOOKUP(M128,[1]未招聘!A:I,8,FALSE)","v":2},0,{"$f":"VLOOKUP(M128,[1]未招聘!A:I,9,FALSE)","v":"是"}]
[126,"长春汽车经济技术开发区教育局","长春汽车经济技术开发区锦程幼儿园","幼儿教师","初级专业技术岗位","财政拨款",2,"不限","统招本科学历学士学位或硕士研究生及以上学历学位","研究生：学前教育、学前教育学\n本科：学前教育","报名邮箱：qkqjyjrsk@126.com\n报名电话：0431-85905162","1.2022年7月31日前必须取得相应的教师资格证\n2.区管校用，二次分配","长春汽车经济技术开发区锦程幼儿园幼儿教师",{"$f":"VLOOKUP(M129,[1]未招聘!A:I,8,FALSE)","v":2},0,{"$f":"VLOOKUP(M129,[1]未招聘!A:I,9,FALSE)","v":"是"}]
[127,"长春汽车经济技术开发区教育局","长春汽车经济技术开发区奔驰幼儿园","幼儿教师","初级专业技术岗位","财政拨款",1,"不限","统招本科学历学士学位或硕士研究生及以上学历学位","研究生：学前教育、学前教育学\n本科：学前教育","报名邮箱：qkqjyjrsk@126.com\n报名电话：0431-85905162","1.2022年7月31日前必须取得相应的教师资格证\n2.区管校用，二次分配","长春汽车经济技术开发区奔驰幼儿园幼儿教师",{"$f":"VLOOKUP(M130,[1]未招聘!A:I,8,FALSE)","v":1},0,{"$f":"VLOOKUP(M130,[1]未招聘!A:I,9,FALSE)","v":"是"}]
[128,"长春汽车经济技术开发区教育局","长春汽车经济技术开发区实验幼儿园","幼儿教师","初级专业技术岗位","财政拨款",1,"不限","统招本科学历学士学位或硕士研究生及以上学历学位","研究生：学前教育、学前教育学\n本科：学前教育","报名邮箱：qkqjyjrsk@126.com\n报名电话：0431-85905162","1.2022年7月31日前必须取得相应的教师资格证\n2.区管校用，二次分配","长春汽车经济技术开发区实验幼儿园幼儿教师",{"$f":"VLOOKUP(M131,[1]未招聘!A:I,8,FALSE)","v":1},0,{"$f":"VLOOKUP(M131,[1]未招聘!A:I,9,FALSE)","v":"是"}]
[129,"长春汽车经济技术开发区教育局","长春汽车经济技术开发区昆仑幼儿园","幼儿教师","初级专业技术岗位","财政拨款",2,"不限","统招本科学历学士学位或硕士研究生及以上学历学位","研究生：学前教育、学前教育学\n本科：学前教育","报名邮箱：qkqjyjrsk@126.com\n报名电话：0431-85905162","1.2022年7月31日前必须取得相应的教师资格证\n2.区管校用，二次分配","长春汽车经济技术开发区昆仑幼儿园幼儿教师",{"$f":"VLOOKUP(M132,[1]未招聘!A:I,8,FALSE)","v":2},0,{"$f":"VLOOKUP(M132,[1]未招聘!A:I,9,FALSE)","v":"是"}]
[130,"长春汽车经济技术开发区教育局","长春汽车经济技术开发区杨柳幼儿园","幼儿教师","初级专业技术岗位","财政拨款",3,"不限","统招本科学历学士学位或硕士研究生及以上学历学位","研究生：学前教育、学前教育学\n本科：学前教育","报名邮箱：qkqjyjrsk@126.com\n报名电话：0431-85905162","1.2022年7月31日前必须取得相应的教师资格证\n2.区管校用，二次分配","长春汽车经济技术开发区杨柳幼儿园幼儿教师",{"$f":"VLOOKUP(M133,[1]未招聘!A:I,8,FALSE)","v":3},0,{"$f":"VLOOKUP(M133,[1]未招聘!A:I,9,FALSE)","v":"是"}]
[131,"长春汽车经济技术开发区教育局","长春汽车经济技术开发区安顺幼儿园","幼儿教师","初级专业技术岗位","财政拨款",1,"不限","统招本科学历学士学位或硕士研究生及以上学历学位","研究生：学前教育、学前教育学\n本科：学前教育","报名邮箱：qkqjyjrsk@126.com\n报名电话：0431-85905162","1.2022年7月31日前必须取得相应的教师资格证\n2.区管校用，二次分配","长春汽车经济技术开发区安顺幼儿园幼儿教师",{"$f":"VLOOKUP(M134,[1]未招聘!A:I,8,FALSE)","v":1},0,{"$f":"VLOOKUP(M134,[1]未招聘!A:I,9,FALSE)","v":"是"}]
[132,"长春汽车经济技术开发区教育局","长春汽车经济技术开发区创业幼儿园","幼儿教师","初级专业技术岗位","财政拨款",2,"不限","统招本科学历学士学位或硕士研究生及以上学历学位","研究生：学前教育、学前教育学\n本科：学前教育","报名邮箱：qkqjyjrsk@126.com\n报名电话：0431-85905162","1.2022年7月31日前必须取得相应的教师资格证\n2.区管校用，二次分配","长春汽车经济技术开发区创业幼儿园幼儿教师",{"$f":"VLOOKUP(M135,[1]未招聘!A:I,8,FALSE)","v":2},0,{"$f":"VLOOKUP(M135,[1]未招聘!A:I,9,FALSE)","v":"是"}]
[133,"长春汽车经济技术开发区教育局","长春汽车经济技术开发区第一小学","小学语文教师","初级专业技术岗位","财政拨款",1,"不限","统招本科学历学士学位或硕士研究生及以上学历学位","研究生：中国语言文学(一级学科)、学科教学(语文)、小学教育(语文方向)、汉语国际教育\n本科：中国语言文学类(一级学科)、小学教育(语文方向)","报名邮箱：qkqjyjrsk@126.com\n报名电话：0431-85905162","1.2022年7月31日前必须取得相应的教师资格证\n2.区管校用，二次分配","长春汽车经济技术开发区第一小学小学语文教师",{"$f":"VLOOKUP(M136,[1]未招聘!A:I,8,FALSE)","v":1},0,{"$f":"VLOOKUP(M136,[1]未招聘!A:I,9,FALSE)","v":"是"}]
[134,"长春汽车经济技术开发区教育局","长春汽车经济技术开发区第七小学","小学语文教师","初级专业技术岗位","财政拨款",1,"不限","统招本科学历学士学位或硕士研究生及以上学历学位","研究生：中国语言文学(一级学科)、学科教学(语文)、小学教育(语文方向)、汉语国际教育\n本科：中国语言文学类(一级学科)、小学教育(语文方向)","报名邮箱：qkqjyjrsk@126.com\n报名电话：0431-85905162","1.2022年7月31日前必须取得相应的教师资格证\n2.区管校用，二次分配","长春汽车经济技术开发区第七小学小学语文教师",{"$f":"VLOOKUP(M137,[1]未招聘!A:I,8,FALSE)","v":1},0,{"$f":"VLOOKUP(M137,[1]未招聘!A:I,9,FALSE)","v":"是"}]
[135,"长春汽车经济技术开发区教育局","长春汽车经济技术开发区第十二小学","小学语文教师","初级专业技术岗位","财政拨款",2,"不限","统招本科学历学士学位或硕士研究生及以上学历学位","研究生：中国语言文学(一级学科)、学科教学(语文)、小学教育(语文方向)、汉语国际教育\n本科：中国语言文学类(一级学科)、小学教育(语文方向)","报名邮箱：qkqjyjrsk@126.com\n报名电话：0431-85905162","1.2022年7月31日前必须取得相应的教师资格证\n2.区管校用，二次分配","长春汽车经济技术开发区第十二小学小学语文教师",{"$f":"VLOOKUP(M138,[1]未招聘!A:I,8,FALSE)","v":2},0,{"$f":"VLOOKUP(M138,[1]未招聘!A:I,9,FALSE)","v":"是"}]
[136,"长春汽车经济技术开发区教育局","长春汽车经济技术开发区第十三小学","小学语文教师","初级专业技术岗位","财政拨款",2,"不限","统招本科学历学士学位或硕士研究生及以上学历学位","研究生：中国语言文学(一级学科)、学科教学(语文)、小学教育(语文方向)、汉语国际教育\n本科：中国语言文学类(一级学科)、小学教育(语文方向)","报名邮箱：qkqjyjrsk@126.com\n报名电话：0431-85905162","1.2022年7月31日前必须取得相应的教师资格证\n2.区管校用，二次分配","长春汽车经济技术开发区第十三小学小学语文教师",{"$f":"VLOOKUP(M139,[1]未招聘!A:I,8,FALSE)","v":2},0,{"$f":"VLOOKUP(M139,[1]未招聘!A:I,9,FALSE)","v":"是"}]
[137,"长春汽车经济技术开发区教育局","长春汽车经济技术开发区第二实验学校","小学语文教师","初级专业技术岗位","财政拨款",2,"不限","统招本科学历学士学位或硕士研究生及以上学历学位","研究生：中国语言文学(一级学科)、学科教学(语文)、小学教育(语文方向)、汉语国际教育\n本科：中国语言文学类(一级学科)、小学教育(语文方向)","报名邮箱：qkqjyjrsk@126.com\n报名电话：0431-85905162","1.2022年7月31日前必须取得相应的教师资格证\n2.区管校用，二次分配","长春汽车经济技术开发区第二实验学校小学语文教师",{"$f":"VLOOKUP(M140,[1]未招聘!A:I,8,FALSE)","v":1},-1,{"$f":"VLOOKUP(M140,[1]未招聘!A:I,9,FALSE)","v":"是"}]
[138,"长春汽车经济技术开发区教育局","长春汽车经济技术开发区长沈路学校","小学语文教师","初级专业技术岗位","财政拨款",1,"不限","统招本科学历学士学位或硕士研究生及以上学历学位","研究生：中国语言文学(一级学科)、学科教学(语文)、小学教育(语文方向)、汉语国际教育\n本科：中国语言文学类(一级学科)、小学教育(语文方向)","报名邮箱：qkqjyjrsk@126.com\n报名电话：0431-85905162","1.2022年7月31日前必须取得相应的教师资格证\n2.区管校用，二次分配","长春汽车经济技术开发区长沈路学校小学语文教师",{"$f":"VLOOKUP(M141,[1]未招聘!A:I,8,FALSE)","v":1},0,{"$f":"VLOOKUP(M141,[1]未招聘!A:I,9,FALSE)","v":"是"}]
[139,"长春汽车经济技术开发区教育局","长春汽车经济技术开发区东风学校","小学语文教师","初级专业技术岗位","财政拨款",2,"不限","统招本科学历学士学位或硕士研究生及以上学历学位","研究生：中国语言文学(一级学科)、学科教学(语文)、小学教育(语文方向)、汉语国际教育\n本科：中国语言文学类(一级学科)、小学教育(语文方向)","报名邮箱：qkqjyjrsk@126.com\n报名电话：0431-85905162","1.2022年7月31日前必须取得相应的教师资格证\n2.区管校用，二次分配","长春汽车经济技术开发区东风学校小学语文教师",{"$f":"VLOOKUP(M142,[1]未招聘!A:I,8,FALSE)","v":2},0,{"$f":"VLOOKUP(M142,[1]未招聘!A:I,9,FALSE)","v":"是"}]
[140,"长春汽车经济技术开发区教育局","长春汽车经济技术开发区第十二小学","小学信息技术教师","初级专业技术岗位","财政拨款",1,"不限","统招本科学历学士学位或硕士研究生及以上学历学位","研究生：计算机科学与技术(一级学科)、计算机技术、现代教育技术\n本科：教育技术学、计算机类(一级学科)","报名邮箱：qkqjyjrsk@126.com\n报名电话：0431-85905162","1.2022年7月31日前必须取得相应的教师资格证\n2.区管校用，二次分配","长春汽车经济技术开发区第十二小学小学信息技术教师",{"$f":"VLOOKUP(M143,[1]未招聘!A:I,8,FALSE)","v":1},0,{"$f":"VLOOKUP(M143,[1]未招聘!A:I,9,FALSE)","v":"是"}]
[141,"长春汽车经济技术开发区教育局","长春汽车经济技术开发区第一小学","小学体育教师","初级专业技术岗位","财政拨款",1,"不限","统招本科学历学士学位或硕士研究生及以上学历学位","研究生：体育学(一级学科)、学科教学(体育)、体育(一级学科)\n本科：体育教育、运动训练、社会体育指导与管理、武术与民族传统体育、运动人体科学、运动康复、休闲体育","报名邮箱：qkqjyjrsk@126.com\n报名电话：0431-85905162","1.2022年7月31日前必须取得相应的教师资格证\n2.区管校用，二次分配","长春汽车经济技术开发区第一小学小学体育教师",{"$f":"VLOOKUP(M144,[1]未招聘!A:I,8,FALSE)","v":{"$error":"#N/A"}},{"$error":"#N/A"},{"$f":"VLOOKUP(M144,[1]未招聘!A:I,9,FALSE)","v":{"$error":"#N/A"}}]
[142,"长春汽车经济技术开发区教育局","长春汽车经济技术开发区第二实验学校","小学体育教师","初级专业技术岗位","财政拨款",1,"不限","统招本科学历学士学位或硕士研究生及以上学历学位","研究生：体育学(一级学科)、学科教学(体育)、体育(一级学科)\n本科：体育教育、运动训练、社会体育指导与管理、武术与民族传统体育、运动人体科学、运动康复、休闲体育","报名邮箱：qkqjyjrsk@126.com\n报名电话：0431-85905162","1.2022年7月31日前必须取得相应的教师资格证\n2.区管校用，二次分配",{"$f":"C145&D145","v":"长春汽车经济技术开发区第二实验学校小学体育教师"},{"$f":"VLOOKUP(M145,[1]未招聘!A:I,8,FALSE)","v":1},{"$f":"N145-G145","v":0},{"$f":"VLOOKUP(M145,[1]未招聘!A:I,9,FALSE)","v":"是"}]
[143,"长春汽车经济技术开发区教育局","长春汽车经济技术开发区第一小学","小学数学教师","初级专业技术岗位","财政拨款",1,"不限","统招本科学历学士学位或硕士研究生及以上学历学位","研究生：数学(一级学科)、学科教学(数学)、小学教育(数学方向)\n本科：数学类(一级学科)、小学教育(数学方向)","报名邮箱：qkqjyjrsk@126.com\n报名电话：0431-85905162","1.2022年7月31日前必须取得相应的教师资格证\n2.区管校用，二次分配","长春汽车经济技术开发区第一小学小学数学教师",{"$f":"VLOOKUP(M146,[1]未招聘!A:I,8,FALSE)","v":1},0,{"$f":"VLOOKUP(M146,[1]未招聘!A:I,9,FALSE)","v":"是"}]
[144,"长春汽车经济技术开发区教育局","长春汽车经济技术开发区第十三小学","小学数学教师","初级专业技术岗位","财政拨款",1,"不限","统招本科学历学士学位或硕士研究生及以上学历学位","研究生：数学(一级学科)、学科教学(数学)、小学教育(数学方向)\n本科：数学类(一级学科)、小学教育(数学方向)","报名邮箱：qkqjyjrsk@126.com\n报名电话：0431-85905162","1.2022年7月31日前必须取得相应的教师资格证\n2.区管校用，二次分配","长春汽车经济技术开发区第十三小学小学数学教师",{"$f":"VLOOKUP(M147,[1]未招聘!A:I,8,FALSE)","v":1},0,{"$f":"VLOOKUP(M147,[1]未招聘!A:I,9,FALSE)","v":"是"}]
[145,"长春汽车经济技术开发区教育局","长春汽车经济技术开发区第二实验学校","小学数学教师","初级专业技术岗位","财政拨款",2,"不限","统招本科学历学士学位或硕士研究生及以上学历学位","研究生：数学(一级学科)、学科教学(数学)、小学教育(数学方向)\n本科：数学类(一级学科)、小学教育(数学方向)","报名邮箱：qkqjyjrsk@126.com\n报名电话：0431-85905162","1.2022年7月31日前必须取得相应的教师资格证\n2.区管校用，二次分配","长春汽车经济技术开发区第二实验学校小学数学教师",{"$f":"VLOOKUP(M148,[1]未招聘!A:I,8,FALSE)","v":2},0,{"$f":"VLOOKUP(M148,[1]未招聘!A:I,9,FALSE)","v":"是"}]
[146,"长春汽车经济技术开发区教育局","长春汽车经济技术开发区东风学校","小学数学教师","初级专业技术岗位","财政拨款",1,"不限","统招本科学历学士学位或硕士研究生及以上学历学位","研究生：数学(一级学科)、学科教学(数学)、小学教育(数学方向)\n本科：数学类(一级学科)、小学教育(数学方向)","报名邮箱：qkqjyjrsk@126.com\n报名电话：0431-85905162","1.2022年7月31日前必须取得相应的教师资格证\n2.区管校用，二次分配","长春汽车经济技术开发区东风学校小学数学教师",{"$f":"VLOOKUP(M149,[1]未招聘!A:I,8,FALSE)","v":1},0,{"$f":"VLOOKUP(M149,[1]未招聘!A:I,9,FALSE)","v":"是"}]
[147,"长春汽车经济技术开发区教育局","长春汽车经济技术开发区西湖实验学校","小学数学教师","初级专业技术岗位","财政拨款",1,"不限","统招本科学历学士学位或硕士研究生及以上学历学位","研究生：数学(一级学科)、学科教学(数学)、小学教育(数学方向)\n本科：数学类(一级学科)、小学教育(数学方向)","报名邮箱：qkqjyjrsk@126.com\n报名电话：0431-85905162","2022年7月31日前必须取得相应的教师资格证","长春汽车经济技术开发区西湖实验学校小学数学教师",{"$f":"VLOOKUP(M150,[1]未招聘!A:I,8,FALSE)","v":1},0,{"$f":"VLOOKUP(M150,[1]未招聘!A:I,9,FALSE)","v":"是"}]
[148,"长春汽车经济技术开发区教育局","长春汽车经济技术开发区第六中学","高中信息技术教师","初级专业技术岗位","财政拨款",1,"不限","统招本科学历学士学位或硕士研究生及以上学历学位","研究生：计算机科学与技术(一级学科)、计算机技术、现代教育技术\n本科：教育技术学、计算机类(一级学科)","报名邮箱：qkqjyjrsk@126.com\n报名电话：0431-85905162","2022年7月31日前必须取得相应的教师资格证","长春汽车经济技术开发区第六中学高中信息技术教师",{"$f":"VLOOKUP(M151,[1]未招聘!A:I,8,FALSE)","v":{"$error":"#N/A"}},{"$error":"#N/A"},{"$f":"VLOOKUP(M151,[1]未招聘!A:I,9,FALSE)","v":{"$error":"#N/A"}}]
[149,"长春汽车经济技术开发区教育局","长春汽车经济技术开发区第六中学","高中通用技术教师","初级专业技术岗位","财政拨款",1,"不限","统招本科学历学士学位或硕士研究生及以上学历学位","研究生：物理学(一级学科)、学科教学(物理)\n本科：物理学类(一级学科)","报名邮箱：qkqjyjrsk@126.com\n报名电话：0431-85905162","2022年7月31日前必须取得相应的教师资格证","长春汽车经济技术开发区第六中学高中通用技术教师",{"$f":"VLOOKUP(M152,[1]未招聘!A:I,8,FALSE)","v":1},0,{"$f":"VLOOKUP(M152,[1]未招聘!A:I,9,FALSE)","v":"是"}]
[150,"长春汽车经济技术开发区教育局","长春汽车经济技术开发区第三中学","高中历史教师","初级专业技术岗位","财政拨款",1,"不限","统招本科学历学士学位或硕士研究生及以上学历学位","研究生：历史学(一级学科)、学科教学(历史)\n本科：历史学类(一级学科)","报名邮箱：qkqjyjrsk@126.com\n报名电话：0431-85905162","2022年7月31日前必须取得相应的教师资格证","长春汽车经济技术开发区第三中学高中历史教师",{"$f":"VLOOKUP(M153,[1]未招聘!A:I,8,FALSE)","v":{"$error":"#N/A"}},{"$error":"#N/A"},{"$f":"VLOOKUP(M153,[1]未招聘!A:I,9,FALSE)","v":{"$error":"#N/A"}}]
[151,"长春汽车经济技术开发区教育局","长春汽车经济技术开发区第十中学","初中语文教师","初级专业技术岗位","财政拨款",1,"不限","统招本科学历学士学位或硕士研究生及以上学历学位","研究生：中国语言文学(一级学科)、学科教学(语文)、汉语国际教育\n本科：中国语言文学类(一级学科)","报名邮箱：qkqjyjrsk@126.com\n报名电话：0431-85905162","1.2022年7月31日前必须取得相应的教师资格证\n2.区管校用，二次分配","长春汽车经济技术开发区第十中学初中语文教师",{"$f":"VLOOKUP(M154,[1]未招聘!A:I,8,FALSE)","v":1},0,{"$f":"VLOOKUP(M154,[1]未招聘!A:I,9,FALSE)","v":"是"}]
[152,"长春汽车经济技术开发区教育局","长春汽车经济技术开发区第一中学","初中历史教师","初级专业技术岗位","财政拨款",1,"不限","统招本科学历学士学位或硕士研究生及以上学历学位","研究生：历史学(一级学科)、学科教学(历史)\n本科：历史学类(一级学科)","报名邮箱：qkqjyjrsk@126.com\n报名电话：0431-85905162","1.2022年7月31日前必须取得相应的教师资格证\n2.区管校用，二次分配","长春汽车经济技术开发区第一中学初中历史教师",{"$f":"VLOOKUP(M155,[1]未招聘!A:I,8,FALSE)","v":1},0,{"$f":"VLOOKUP(M155,[1]未招聘!A:I,9,FALSE)","v":"是"}]
[153,"长春汽车经济技术开发区教育局","长春汽车经济技术开发区第一中学","初中道德与法治教师","初级专业技术岗位","财政拨款",1,"不限","统招本科学历学士学位或硕士研究生及以上学历学位","研究生：哲学(一级学科)、政治学(一级学科)、马克思主义理论(一级学科)、学科教学(思政)\n本科：哲学类(一级学科)、政治学类(一级学科)、马克思主义理论类(一级学科)","报名邮箱：qkqjyjrsk@126.com\n报名电话：0431-85905162","1.2022年7月31日前必须取得相应的教师资格证\n2.区管校用，二次分配","长春汽车经济技术开发区第一中学初中道德与法治教师",{"$f":"VLOOKUP(M156,[1]未招聘!A:I,8,FALSE)","v":{"$error":"#N/A"}},{"$error":"#N/A"},{"$f":"VLOOKUP(M156,[1]未招聘!A:I,9,FALSE)","v":{"$error":"#N/A"}}]
[154,"长春新区教育局","长春新区北湖明达学校","初中语文教师","初级专业技术岗位","财政拨款",1,"不限","硕士研究生及以上学历学位","研究生：中国语言文学(一级学科)、学科教学(语文)、课程与教学论(语文)","报名邮箱：770920838@qq.com\n报名电话：0431-82538547","2022年7月31日前必须取得相应的教师资格证","长春新区北湖明达学校初中语文教师",{"$f":"VLOOKUP(M157,[1]未招聘!A:I,8,FALSE)","v":1},0,{"$f":"VLOOKUP(M157,[1]未招聘!A:I,9,FALSE)","v":"是"}]
[155,"长春新区教育局","长春新区北湖明达学校","初中英语教师","初级专业技术岗位","财政拨款",1,"不限","硕士研究生及以上学历学位","研究生：外国语言文学(英语方向)、翻译(英语方向)、学科教学(英语)、课程与教学论(英语)","报名邮箱：770920838@qq.com\n报名电话：0431-82538547","2022年7月31日前必须取得相应的教师资格证","长春新区北湖明达学校初中英语教师",{"$f":"VLOOKUP(M158,[1]未招聘!A:I,8,FALSE)","v":1},0,{"$f":"VLOOKUP(M158,[1]未招聘!A:I,9,FALSE)","v":"是"}]
[156,"长春新区教育局","长春新区北湖英才学校学校","小学数学教师","初级专业技术岗位","财政拨款",1,"不限","硕士研究生及以上学历学位","研究生：数学(一级学科)、学科教学(数学)、小学教育(数学)","报名邮箱：770920838@qq.com\n报名电话：0431-82538547","2022年7月31日前必须取得相应的教师资格证","长春新区北湖英才学校学校小学数学教师",{"$f":"VLOOKUP(M159,[1]未招聘!A:I,8,FALSE)","v":1},0,{"$f":"VLOOKUP(M159,[1]未招聘!A:I,9,FALSE)","v":"是"}]
[157,"长春新区教育局","长春高新技术产业开发区慧谷学校","初中地理教师","初级专业技术岗位","财政拨款",1,"不限","硕士研究生及以上学历学位","研究生：地理学(一级学科)、学科教学(地理)","报名邮箱：770920838@qq.com\n报名电话：0431-82538547","2022年7月31日前必须取得相应的教师资格证","长春高新技术产业开发区慧谷学校初中地理教师",{"$f":"VLOOKUP(M160,[1]未招聘!A:I,8,FALSE)","v":1},0,{"$f":"VLOOKUP(M160,[1]未招聘!A:I,9,FALSE)","v":"是"}]
[158,"长春新区教育局","长春高新技术产业开发区慧谷学校","小学语文教师","初级专业技术岗位","财政拨款",1,"不限","硕士研究生及以上学历学位","研究生：中国语言文学(一级学科)、学科教学(语文)、小学教育(语文)","报名邮箱：770920838@qq.com\n报名电话：0431-82538547","2022年7月31日前必须取得相应的教师资格证","长春高新技术产业开发区慧谷学校小学语文教师",{"$f":"VLOOKUP(M161,[1]未招聘!A:I,8,FALSE)","v":1},0,{"$f":"VLOOKUP(M161,[1]未招聘!A:I,9,FALSE)","v":"是"}]
[159,"长春新区教育局","长春高新技术产业开发区慧仁学校","初中语文教师","初级专业技术岗位","财政拨款",1,"不限","硕士研究生及以上学历学位","研究生：中国语言文学(一级学科)、学科教学(语文)","报名邮箱：770920838@qq.com\n报名电话：0431-82538547","2022年7月31日前必须取得相应的教师资格证","长春高新技术产业开发区慧仁学校初中语文教师",{"$f":"VLOOKUP(M162,[1]未招聘!A:I,8,FALSE)","v":1},0,{"$f":"VLOOKUP(M162,[1]未招聘!A:I,9,FALSE)","v":"是"}]
[160,"长春新区教育局","长春高新技术产业开发区慧仁学校","小学语文教师","初级专业技术岗位","财政拨款",1,"不限","硕士研究生及以上学历学位","研究生：中国语言文学(一级学科)、学科教学(语文)","报名邮箱：770920838@qq.com\n报名电话：0431-82538547","2022年7月31日前必须取得相应的教师资格证","长春高新技术产业开发区慧仁学校小学语文教师",{"$f":"VLOOKUP(M163,[1]未招聘!A:I,8,FALSE)","v":1},0,{"$f":"VLOOKUP(M163,[1]未招聘!A:I,9,FALSE)","v":"是"}]
[161,"长春新区教育局","长春高新技术产业开发区慧仁学校","小学数学教师","初级专业技术岗位","财政拨款",1,"不限","硕士研究生及以上学历学位","研究生：数学(一级学科)、学科教学(数学)","报名邮箱：770920838@qq.com\n报名电话：0431-82538547","2022年7月31日前必须取得相应的教师资格证","长春高新技术产业开发区慧仁学校小学数学教师",{"$f":"VLOOKUP(M164,[1]未招聘!A:I,8,FALSE)","v":1},0,{"$f":"VLOOKUP(M164,[1]未招聘!A:I,9,FALSE)","v":"是"}]
[162,"长春新区教育局","长春高新技术产业开发区尚德学校","初中道德与法治教师","初级专业技术岗位","财政拨款",1,"不限","硕士研究生及以上学历学位","研究生：政治学、学科教学(思政)、课程与教学论(思政方向)、思想政治教育","报名邮箱：770920838@qq.com\n报名电话：0431-82538547","2022年7月31日前必须取得相应的教师资格证","长春高新技术产业开发区尚德学校初中道德与法治教师",{"$f":"VLOOKUP(M165,[1]未招聘!A:I,8,FALSE)","v":1},0,{"$f":"VLOOKUP(M165,[1]未招聘!A:I,9,FALSE)","v":"是"}]
[163,"长春新区教育局","长春高新技术产业开发区尚德学校","初中语文教师","初级专业技术岗位","财政拨款",1,"不限","硕士研究生及以上学历学位","研究生：中国语言文学(一级学科)、学科教学(语文)、课程与教学论(语文)","报名邮箱：770920838@qq.com\n报名电话：0431-82538547","2022年7月31日前必须取得相应的教师资格证","长春高新技术产业开发区尚德学校初中语文教师",{"$f":"VLOOKUP(M166,[1]未招聘!A:I,8,FALSE)","v":1},0,{"$f":"VLOOKUP(M166,[1]未招聘!A:I,9,FALSE)","v":"是"}]
[164,"长春新区教育局","长春高新第一实验学校","初中语文教师","初级专业技术岗位","财政拨款",1,"不限","硕士研究生及以上学历学位","研究生：中国语言文学(一级学科)、学科教学(语文)、课程与教学论(语文)","报名邮箱：770920838@qq.com\n报名电话：0431-82538547","2022年7月31日前必须取得相应的教师资格证","长春高新第一实验学校初中语文教师",{"$f":"VLOOKUP(M167,[1]未招聘!A:I,8,FALSE)","v":1},0,{"$f":"VLOOKUP(M167,[1]未招聘!A:I,9,FALSE)","v":"是"}]
[165,"长春新区教育局","长春高新第一实验学校","小学语文教师","初级专业技术岗位","财政拨款",1,"不限","硕士研究生及以上学历学位","研究生：中国语言文学(一级学科)、学科教学(语文)、小学教育(语文)","报名邮箱：770920838@qq.com\n报名电话：0431-82538547","2022年7月31日前必须取得相应的教师资格证","长春高新第一实验学校小学语文教师",{"$f":"VLOOKUP(M168,[1]未招聘!A:I,8,FALSE)","v":1},0,{"$f":"VLOOKUP(M168,[1]未招聘!A:I,9,FALSE)","v":"是"}]
[166,"长春新区教育局","长春高新第二实验学校","初中英语教师","初级专业技术岗位","财政拨款",1,"不限","硕士研究生及以上学历学位","研究生：外国语言文学(英语方向)、翻译(英语方向)、学科教学(英语)、课程与教学论(英语)","报名邮箱：770920838@qq.com\n报名电话：0431-82538547","2022年7月31日前必须取得相应的教师资格证","长春高新第二实验学校初中英语教师",{"$f":"VLOOKUP(M169,[1]未招聘!A:I,8,FALSE)","v":1},0,{"$f":"VLOOKUP(M169,[1]未招聘!A:I,9,FALSE)","v":"是"}]
[167,"长春新区教育局","长春高新兴华学校","初中语文教师","初级专业技术岗位","财政拨款",1,"不限","硕士研究生及以上学历学位","研究生：中国语言文学(一级学科)、学科教学(语文)、课程与教学论(语文)","报名邮箱：770920838@qq.com\n报名电话：0431-82538547","2022年7月31日前必须取得相应的教师资格证","长春高新兴华学校初中语文教师",{"$f":"VLOOKUP(M170,[1]未招聘!A:I,8,FALSE)","v":1},0,{"$f":"VLOOKUP(M170,[1]未招聘!A:I,9,FALSE)","v":"是"}]
[168,"长春新区教育局","长春高新兴华学校","初中数学教师","初级专业技术岗位","财政拨款",1,"不限","硕士研究生及以上学历学位","研究生：数学(一级学科)、学科教学(数学)","报名邮箱：770920838@qq.com\n报名电话：0431-82538547","2022年7月31日前必须取得相应的教师资格证","长春高新兴华学校初中数学教师",{"$f":"VLOOKUP(M171,[1]未招聘!A:I,8,FALSE)","v":1},0,{"$f":"VLOOKUP(M171,[1]未招聘!A:I,9,FALSE)","v":"是"}]
[169,"长春市九台区教育局","九台区第一中学","高中政治教师","初级专业技术岗位","财政拨款",1,"不限","统招本科学历学士学位或硕士研究生及以上学历学位","研究生：哲学(一级学科)、政治学(一级学科)、马克思主义理论(一级学科)、学科教学(思政)\n本科：哲学类(一级学科)、政治学类(一级学科)、马克思主义理论类(一级学科)","报名邮箱：33979329@qq.com\n报名电话：0431-82324039","2022年7月31日前必须取得相应的教师资格证","九台区第一中学高中政治教师",{"$f":"VLOOKUP(M172,[1]未招聘!A:I,8,FALSE)","v":1},0,{"$f":"VLOOKUP(M172,[1]未招聘!A:I,9,FALSE)","v":"是"}]
[170,"长春市九台区教育局","九台区第一中学","高中语文教师","初级专业技术岗位","财政拨款",1,"不限","统招本科学历学士学位或硕士研究生及以上学历学位","研究生：中国语言文学(一级学科)、学科教学(语文)\n本科：中国语言文学类(一级学科)","报名邮箱：33979329@qq.com\n报名电话：0431-82324039","2022年7月31日前必须取得相应的教师资格证","九台区第一中学高中语文教师",{"$f":"VLOOKUP(M173,[1]未招聘!A:I,8,FALSE)","v":1},0,{"$f":"VLOOKUP(M173,[1]未招聘!A:I,9,FALSE)","v":"是"}]
[171,"长春市九台区教育局","九台区实验高中","高中地理教师","初级专业技术岗位","财政拨款",2,"不限","统招本科学历学士学位或硕士研究生及以上学历学位","研究生：地理学(一级学科)、学科教学(地理)\n本科：地理科学类(一级学科)","报名邮箱：33979329@qq.com\n报名电话：0431-82324039","2022年7月31日前必须取得相应的教师资格证","九台区实验高中高中地理教师",{"$f":"VLOOKUP(M174,[1]未招聘!A:I,8,FALSE)","v":2},0,{"$f":"VLOOKUP(M174,[1]未招聘!A:I,9,FALSE)","v":"是"}]
[172,"长春市九台区教育局","九台区实验高中","高中历史教师","初级专业技术岗位","财政拨款",1,"不限","统招本科学历学士学位或硕士研究生及以上学历学位","研究生：历史学(门类)、学科教学(历史)\n本科：历史学类(一级学科)","报名邮箱：33979329@qq.com\n报名电话：0431-82324039","2022年7月31日前必须取得相应的教师资格证","九台区实验高中高中历史教师",{"$f":"VLOOKUP(M175,[1]未招聘!A:I,8,FALSE)","v":1},0,{"$f":"VLOOKUP(M175,[1]未招聘!A:I,9,FALSE)","v":"是"}]
[173,"长春市九台区教育局","九台区营城第一高级中学","高中地理教师","初级专业技术岗位","财政拨款",1,"不限","统招本科学历学士学位或硕士研究生及以上学历学位","研究生：地理学(一级学科)、学科教学(地理)\n本科：地理科学类(一级学科)","报名邮箱：33979329@qq.com\n报名电话：0431-82324039","2022年7月31日前必须取得相应的教师资格证","九台区营城第一高级中学高中地理教师",{"$f":"VLOOKUP(M176,[1]未招聘!A:I,8,FALSE)","v":1},0,{"$f":"VLOOKUP(M176,[1]未招聘!A:I,9,FALSE)","v":"是"}]
[174,"长春市九台区教育局","九台区营城第一高级中学","高中信息技术教师","初级专业技术岗位","财政拨款",1,"不限","统招本科学历学士学位或硕士研究生及以上学历学位","研究生：计算机科学与技术(一级学科)、计算机技术(专业学位)、现代教育技术\n本科：教育技术学、计算机类(一级学科)","报名邮箱：33979329@qq.com\n报名电话：0431-82324039","2022年7月31日前必须取得相应的教师资格证","九台区营城第一高级中学高中信息技术教师",{"$f":"VLOOKUP(M177,[1]未招聘!A:I,8,FALSE)","v":1},0,{"$f":"VLOOKUP(M177,[1]未招聘!A:I,9,FALSE)","v":"是"}]
[175,"长春市九台区教育局","九台区营城第一高级中学","高中生物教师","初级专业技术岗位","财政拨款",1,"不限","统招本科学历学士学位或硕士研究生及以上学历学位","研究生：生物学(一级学科)、学科教学(生物)\n本科：生物科学类(一级学科)","报名邮箱：33979329@qq.com\n报名电话：0431-82324039","2022年7月31日前必须取得相应的教师资格证","九台区营城第一高级中学高中生物教师",{"$f":"VLOOKUP(M178,[1]未招聘!A:I,8,FALSE)","v":1},0,{"$f":"VLOOKUP(M178,[1]未招聘!A:I,9,FALSE)","v":"是"}]
[176,"长春市九台区教育局","九台区师范高级中学","高中生物教师","初级专业技术岗位","财政拨款",2,"不限","统招本科学历学士学位或硕士研究生及以上学历学位","研究生：生物学(一级学科)、学科教学(生物)\n本科：生物科学类(一级学科)","报名邮箱：33979329@qq.com\n报名电话：0431-82324039","2022年7月31日前必须取得相应的教师资格证","九台区师范高级中学高中生物教师",{"$f":"VLOOKUP(M179,[1]未招聘!A:I,8,FALSE)","v":2},0,{"$f":"VLOOKUP(M179,[1]未招聘!A:I,9,FALSE)","v":"是"}]
[177,"长春市九台区教育局","九台区师范高级中学","高中政治教师","初级专业技术岗位","财政拨款",1,"不限","统招本科学历学士学位或硕士研究生及以上学历学位","研究生：哲学(一级学科)、政治学(一级学科)、马克思主义理论(一级学科)、学科教学(思政)\n本科：哲学类(一级学科)、政治学类(一级学科)、马克思主义理论类(一级学科)","报名邮箱：33979329@qq.com\n报名电话：0431-82324039","2022年7月31日前必须取得相应的教师资格证","九台区师范高级中学高中政治教师",{"$f":"VLOOKUP(M180,[1]未招聘!A:I,8,FALSE)","v":1},0,{"$f":"VLOOKUP(M180,[1]未招聘!A:I,9,FALSE)","v":"是"}]
[178,"长春市九台区教育局","九台区第四中学","高中语文教师","初级专业技术岗位","财政拨款",1,"不限","统招本科学历学士学位或硕士研究生及以上学历学位","研究生：中国语言文学(一级学科)、学科教学(语文)\n本科：中国语言文学类(一级学科)","报名邮箱：33979329@qq.com\n报名电话：0431-82324039","2022年7月31日前必须取得相应的教师资格证","九台区第四中学高中语文教师",{"$f":"VLOOKUP(M181,[1]未招聘!A:I,8,FALSE)","v":1},0,{"$f":"VLOOKUP(M181,[1]未招聘!A:I,9,FALSE)","v":"是"}]
[179,"长春市九台区教育局","九台区第四中学","高中生物教师","初级专业技术岗位","财政拨款",1,"不限","统招本科学历学士学位或硕士研究生及以上学历学位","研究生：生物学(一级学科)、学科教学(生物)\n本科：生物科学类(一级学科)","报名邮箱：33979329@qq.com\n报名电话：0431-82324039","2022年7月31日前必须取得相应的教师资格证","九台区第四中学高中生物教师",{"$f":"VLOOKUP(M182,[1]未招聘!A:I,8,FALSE)","v":1},0,{"$f":"VLOOKUP(M182,[1]未招聘!A:I,9,FALSE)","v":"是"}]
[180,"长春市九台区教育局","九台区职业技术教育中心","高中语文教师","初级专业技术岗位","财政拨款",1,"不限","统招本科学历学士学位或硕士研究生及以上学历学位","研究生：中国语言文学(一级学科)、学科教学(语文)\n本科：中国语言文学类(一级学科)","报名邮箱：33979329@qq.com\n报名电话：0431-82324039","2022年7月31日前必须取得相应的教师资格证","九台区职业技术教育中心高中语文教师",{"$f":"VLOOKUP(M183,[1]未招聘!A:I,8,FALSE)","v":1},0,{"$f":"VLOOKUP(M183,[1]未招聘!A:I,9,FALSE)","v":"是"}]
[181,"长春市九台区教育局","九台区职业技术教育中心","高中信息技术教师","初级专业技术岗位","财政拨款",1,"不限","统招本科学历学士学位或硕士研究生及以上学历学位","研究生：计算机科学与技术(一级学科)、计算机技术(专业学位)、现代教育技术\n本科：教育技术学、计算机类(一级学科)","报名邮箱：33979329@qq.com\n报名电话：0431-82324039","2022年7月31日前必须取得相应的教师资格证","九台区职业技术教育中心高中信息技术教师",{"$f":"VLOOKUP(M184,[1]未招聘!A:I,8,FALSE)","v":1},0,{"$f":"VLOOKUP(M184,[1]未招聘!A:I,9,FALSE)","v":"是"}]
[182,"长春市九台区教育局","九台区职业技术教育中心","高中历史教师","初级专业技术岗位","财政拨款",1,"不限","统招本科学历学士学位或硕士研究生及以上学历学位","研究生：历史学(门类)、学科教学(历史)\n本科：历史学类(一级学科)","报名邮箱：33979329@qq.com\n报名电话：0431-82324039","2022年7月31日前必须取得相应的教师资格证","九台区职业技术教育中心高中历史教师",{"$f":"VLOOKUP(M185,[1]未招聘!A:I,8,FALSE)","v":1},0,{"$f":"VLOOKUP(M185,[1]未招聘!A:I,9,FALSE)","v":"是"}]
[183,"长春市九台区教育局","九台区青少年活动中心","美术指导教师","初级专业技术岗位","财政拨款",1,"不限","统招本科学历学士学位或硕士研究生及以上学历学位","研究生：美术学、美术、设计艺术学、艺术设计、课程与教学论(美术)、学科教学(美术)\n本科：美术学类(一级学科)","报名邮箱：33979329@qq.com\n报名电话：0431-82324039","2022年7月31日前必须取得相应的教师资格证","九台区青少年活动中心美术指导教师",{"$f":"VLOOKUP(M186,[1]未招聘!A:I,8,FALSE)","v":{"$error":"#N/A"}},{"$error":"#N/A"},{"$f":"VLOOKUP(M186,[1]未招聘!A:I,9,FALSE)","v":{"$error":"#N/A"}}]
[184,"长春市九台区教育局","九台区青少年活动中心","音乐指导教师","初级专业技术岗位","财政拨款",1,"不限","统招本科学历学士学位或硕士研究生及以上学历学位","研究生：音乐与舞蹈学(一级学科)、学科教学(音乐)、音乐、音乐与舞蹈学、舞蹈\n本科：音乐与舞蹈学类(一级学科)","报名邮箱：33979329@qq.com\n报名电话：0431-82324039","2022年7月31日前必须取得相应的教师资格证","九台区青少年活动中心音乐指导教师",{"$f":"VLOOKUP(M187,[1]未招聘!A:I,8,FALSE)","v":{"$error":"#N/A"}},{"$error":"#N/A"},{"$f":"VLOOKUP(M187,[1]未招聘!A:I,9,FALSE)","v":{"$error":"#N/A"}}]
[185,"长春市九台区教育局","九台区实验幼儿园","学前教育教师","初级专业技术岗位","财政拨款",1,"不限","统招本科学历学士学位或硕士研究生及以上学历学位","研究生：学前教育学、学前教育\n本科：学前教育","报名邮箱：33979329@qq.com\n报名电话：0431-82324039","2022年7月31日前必须取得相应的教师资格证","九台区实验幼儿园学前教育教师",{"$f":"VLOOKUP(M188,[1]未招聘!A:I,8,FALSE)","v":1},0,{"$f":"VLOOKUP(M188,[1]未招聘!A:I,9,FALSE)","v":"是"}]
[186,"长春市九台区教育局","九台区幼儿园","学前教育教师","初级专业技术岗位","财政拨款",1,"不限","统招本科学历学士学位或硕士研究生及以上学历学位","研究生：学前教育学、学前教育\n本科：学前教育","报名邮箱：33979329@qq.com\n报名电话：0431-82324039","2022年7月31日前必须取得相应的教师资格证","九台区幼儿园学前教育教师",{"$f":"VLOOKUP(M189,[1]未招聘!A:I,8,FALSE)","v":1},0,{"$f":"VLOOKUP(M189,[1]未招聘!A:I,9,FALSE)","v":"是"}]
[187,"长春市九台区教育局","九台区第二幼儿园","学前教育教师","初级专业技术岗位","财政拨款",2,"不限","统招本科学历学士学位或硕士研究生及以上学历学位","研究生：学前教育学、学前教育\n本科：学前教育","报名邮箱：33979329@qq.com\n报名电话：0431-82324039","2022年7月31日前必须取得相应的教师资格证","九台区第二幼儿园学前教育教师",{"$f":"VLOOKUP(M190,[1]未招聘!A:I,8,FALSE)","v":2},0,{"$f":"VLOOKUP(M190,[1]未招聘!A:I,9,FALSE)","v":"是"}]
[188,"长春市双阳区教育局","长春市第一五〇中学","高中历史教师","初级专业技术岗位","财政拨款",1,"不限","统招本科学历学士学位或硕士研究生及以上学历学位","研究生：中国史、世界史、学科教学(历史)、课程与教学论(历史)\n本科：历史学类(一级学科)","报名邮箱：1004287029@qq.com\n报名电话：0431-84222025","2022年7月31日前必须取得相应的教师资格证","长春市第一五〇中学高中历史教师",{"$f":"VLOOKUP(M191,[1]未招聘!A:I,8,FALSE)","v":1},0,{"$f":"VLOOKUP(M191,[1]未招聘!A:I,9,FALSE)","v":"是"}]
[189,"长春市双阳区教育局","长春市第一五〇中学","高中物理教师","初级专业技术岗位","财政拨款",1,"不限","统招本科学历学士学位或硕士研究生及以上学历学位","研究生：物理学(一级学科)、学科教学(物理)\n本科：物理学类(一级学科)","报名邮箱：1004287029@qq.com\n报名电话：0431-84222025","2022年7月31日前必须取得相应的教师资格证","长春市第一五〇中学高中物理教师",{"$f":"VLOOKUP(M192,[1]未招聘!A:I,8,FALSE)","v":1},0,{"$f":"VLOOKUP(M192,[1]未招聘!A:I,9,FALSE)","v":"是"}]
[190,"长春市双阳区教育局","长春市第一五〇中学","高中地理教师","初级专业技术岗位","财政拨款",2,"不限","统招本科学历学士学位或硕士研究生及以上学历学位","研究生：学科教学(地理)、自然地理学、人文地理学、地图学与地理信息系统、课程与教学论(地理)\n本科：地理科学、地理信息科学","报名邮箱：1004287029@qq.com\n报名电话：0431-84222025","2022年7月31日前必须取得相应的教师资格证","长春市第一五〇中学高中地理教师",{"$f":"VLOOKUP(M193,[1]未招聘!A:I,8,FALSE)","v":2},0,{"$f":"VLOOKUP(M193,[1]未招聘!A:I,9,FALSE)","v":"是"}]
[191,"长春市双阳区教育局","长春市第一五一中学","高中物理教师","初级专业技术岗位","财政拨款",1,"不限","统招本科学历学士学位或硕士研究生及以上学历学位","研究生：物理学(一级学科)、学科教学(物理)\n本科：物理学类(一级学科)","报名邮箱：1004287029@qq.com\n报名电话：0431-84222025","2022年7月31日前必须取得相应的教师资格证","长春市第一五一中学高中物理教师",{"$f":"VLOOKUP(M194,[1]未招聘!A:I,8,FALSE)","v":1},0,{"$f":"VLOOKUP(M194,[1]未招聘!A:I,9,FALSE)","v":"是"}]
[192,"长春市双阳区教育局","长春市第一五一中学","高中历史教师","初级专业技术岗位","财政拨款",1,"不限","统招本科学历学士学位或硕士研究生及以上学历学位","研究生：中国史、世界史、学科教学(历史)、课程与教学论(历史)\n本科：历史学类(一级学科)","报名邮箱：1004287029@qq.com\n报名电话：0431-84222025","2022年7月31日前必须取得相应的教师资格证","长春市第一五一中学高中历史教师",{"$f":"VLOOKUP(M195,[1]未招聘!A:I,8,FALSE)","v":1},0,{"$f":"VLOOKUP(M195,[1]未招聘!A:I,9,FALSE)","v":"是"}]
[193,"长春市双阳区教育局","长春市第一五一中学","高中语文教师","初级专业技术岗位","财政拨款",1,"不限","统招本科学历学士学位或硕士研究生及以上学历学位","研究生：中国语言文学(一级学科)、学科教学(语文)、课程与教学论(语文)\n本科：中国语言文学类(一级学科)","报名邮箱：1004287029@qq.com\n报名电话：0431-84222025","2022年7月31日前必须取得相应的教师资格证","长春市第一五一中学高中语文教师",{"$f":"VLOOKUP(M196,[1]未招聘!A:I,8,FALSE)","v":1},0,{"$f":"VLOOKUP(M196,[1]未招聘!A:I,9,FALSE)","v":"是"}]
[194,"长春市双阳区教育局","长春市第一五一中学","高中政治教师","初级专业技术岗位","财政拨款",1,"不限","统招本科学历学士学位或硕士研究生及以上学历学位","研究生：学科教学(思政)、马克思主义基本原理、马克思主义发展史、马克思主义中国化研究、思想政治教育、中国近现代史基本问题研究、课程与教学论(思政)\n本科：政治学类(一级学科)、马克思主义理论类(一级学科)","报名邮箱：1004287029@qq.com\n报名电话：0431-84222025","2022年7月31日前必须取得相应的教师资格证","长春市第一五一中学高中政治教师",{"$f":"VLOOKUP(M197,[1]未招聘!A:I,8,FALSE)","v":1},0,{"$f":"VLOOKUP(M197,[1]未招聘!A:I,9,FALSE)","v":"是"}]
[195,"长春市双阳区教育局","长春市第一五一中学（分校）","高中语文教师","初级专业技术岗位","财政拨款",1,"不限","统招本科学历学士学位或硕士研究生及以上学历学位","研究生：学科教学(语文)、汉语言文字学、中国古代文学、中国现当代文学、课程与教学论(语文)\n本科：中国语言文学类(一级学科)","报名邮箱：1004287029@qq.com\n报名电话：0431-84222025","2022年7月31日前必须取得相应的教师资格证","长春市第一五一中学（分校）高中语文教师",{"$f":"VLOOKUP(M198,[1]未招聘!A:I,8,FALSE)","v":1},0,{"$f":"VLOOKUP(M198,[1]未招聘!A:I,9,FALSE)","v":"是"}]
[196,"长春市双阳区教育局","长春市第一五一中学（分校）","高中英语教师","初级专业技术岗位","财政拨款",1,"不限","统招本科学历学士学位或硕士研究生及以上学历学位","研究生：学科教学(英语)、英语语言文学、课程与教学论(英语)\n本科：英语、商务英语","报名邮箱：1004287029@qq.com\n报名电话：0431-84222025","2022年7月31日前必须取得相应的教师资格证","长春市第一五一中学（分校）高中英语教师",{"$f":"VLOOKUP(M199,[1]未招聘!A:I,8,FALSE)","v":1},0,{"$f":"VLOOKUP(M199,[1]未招聘!A:I,9,FALSE)","v":"是"}]
[197,"长春市双阳区教育局","长春市第一五一中学（分校）","高中信息技术教师","初级专业技术岗位","财政拨款",2,"不限","统招本科学历学士学位或硕士研究生及以上学历学位","研究生：计算机科学与技术(一级学科)、计算机技术(专业学位)、现代教育技术、计算机系统结构、计算机软件与理论、计算机应用技术、教育技术学、课程与教学论(计算机方向)\n本科：教育技术学、计算机类(一级学科)","报名邮箱：1004287029@qq.com\n报名电话：0431-84222025","2022年7月31日前必须取得相应的教师资格证","长春市第一五一中学（分校）高中信息技术教师",{"$f":"VLOOKUP(M200,[1]未招聘!A:I,8,FALSE)","v":2},0,{"$f":"VLOOKUP(M200,[1]未招聘!A:I,9,FALSE)","v":"是"}]
[198,"长春市双阳区教育局","长春市第一五二中学","初中物理教师","初级专业技术岗位","财政拨款",2,"不限","统招本科学历学士学位或硕士研究生及以上学历学位","研究生：物理学(一级学科)、学科教学(物理)\n本科：物理学类(一级学科)","报名邮箱：1004287029@qq.com\n报名电话：0431-84222025","2022年7月31日前必须取得相应的教师资格证","长春市第一五二中学初中物理教师",{"$f":"VLOOKUP(M201,[1]未招聘!A:I,8,FALSE)","v":2},0,{"$f":"VLOOKUP(M201,[1]未招聘!A:I,9,FALSE)","v":"是"}]
[199,"长春市双阳区教育局","长春市第一五二中学","初中地理教师","初级专业技术岗位","财政拨款",1,"不限","统招本科学历学士学位或硕士研究生及以上学历学位","研究生：地理学(一级学科)、学科教学(地理)\n本科：地理科学类(一级学科)","报名邮箱：1004287029@qq.com\n报名电话：0431-84222025","2022年7月31日前必须取得相应的教师资格证","长春市第一五二中学初中地理教师",{"$f":"VLOOKUP(M202,[1]未招聘!A:I,8,FALSE)","v":1},0,{"$f":"VLOOKUP(M202,[1]未招聘!A:I,9,FALSE)","v":"是"}]
[200,"长春市双阳区教育局","长春市第一五三中学","初中体育教师","初级专业技术岗位","财政拨款",3,"不限","统招本科学历学士学位或硕士研究生及以上学历学位","研究生：学科教学(体育)、体育教学、运动训练、竞赛组织、体育教育训练学、民族传统体育学、体育人文社会学、运动人体科学、社会体育指导、课程与教学论(体育)\n本科：体育教育、运动训练、武术与民族传统体育、民族传统体育、社会体育","报名邮箱：1004287029@qq.com\n报名电话：0431-84222025","2022年7月31日前必须取得相应的教师资格证","长春市第一五三中学初中体育教师",{"$f":"VLOOKUP(M203,[1]未招聘!A:I,8,FALSE)","v":3},0,{"$f":"VLOOKUP(M203,[1]未招聘!A:I,9,FALSE)","v":"是"}]
[201,"长春市双阳区教育局","长春市第一五三中学","初中美术教师","初级专业技术岗位","财政拨款",1,"不限","统招本科学历学士学位或硕士研究生及以上学历学位","研究生：学科教学(美术)、美术学、美术(专业学位)\n本科：美术学类(一级学科)","报名邮箱：1004287029@qq.com\n报名电话：0431-84222025","2022年7月31日前必须取得相应的教师资格证","长春市第一五三中学初中美术教师",{"$f":"VLOOKUP(M204,[1]未招聘!A:I,8,FALSE)","v":1},0,{"$f":"VLOOKUP(M204,[1]未招聘!A:I,9,FALSE)","v":"是"}]
[202,"长春市双阳区教育局","长春市第一五三中学","初中道德与法治教师","初级专业技术岗位","财政拨款",1,"不限","统招本科学历学士学位或硕士研究生及以上学历学位","研究生：政治学(一级学科)、马克思主义理论(一级学科)、学科教学(思政)、课程与教学论(思政)\n本科：政治学类(一级学科)、马克思主义理论类(一级学科)","报名邮箱：1004287029@qq.com\n报名电话：0431-84222025","2022年7月31日前必须取得相应的教师资格证","长春市第一五三中学初中道德与法治教师",{"$f":"VLOOKUP(M205,[1]未招聘!A:I,8,FALSE)","v":1},0,{"$f":"VLOOKUP(M205,[1]未招聘!A:I,9,FALSE)","v":"是"}]
[203,"长春市双阳区教育局","长春市第一五三中学","初中历史教师","初级专业技术岗位","财政拨款",1,"不限","统招本科学历学士学位或硕士研究生及以上学历学位","研究生：历史学(门类)、学科教学(历史)\n本科：历史学类(一级学科)","报名邮箱：1004287029@qq.com\n报名电话：0431-84222025","2022年7月31日前必须取得相应的教师资格证","长春市第一五三中学初中历史教师",{"$f":"VLOOKUP(M206,[1]未招聘!A:I,8,FALSE)","v":1},0,{"$f":"VLOOKUP(M206,[1]未招聘!A:I,9,FALSE)","v":"是"}]
[204,"长春市双阳区教育局","长春市第一五三中学","初中地理教师","初级专业技术岗位","财政拨款",1,"不限","统招本科学历学士学位或硕士研究生及以上学历学位","研究生：地理学(一级学科)、学科教学(地理)\n本科：地理科学类(一级学科)","报名邮箱：1004287029@qq.com\n报名电话：0431-84222025","2022年7月31日前必须取得相应的教师资格证","长春市第一五三中学初中地理教师",{"$f":"VLOOKUP(M207,[1]未招聘!A:I,8,FALSE)","v":1},0,{"$f":"VLOOKUP(M207,[1]未招聘!A:I,9,FALSE)","v":"是"}]
[205,"长春市双阳区教育局","长春市第一五三中学","初中数学教师","初级专业技术岗位","财政拨款",1,"不限","统招本科学历学士学位或硕士研究生及以上学历学位","研究生：数学(一级学科)、学科教学(数学)\n本科：数学类(一级学科)","报名邮箱：1004287029@qq.com\n报名电话：0431-84222025","2022年7月31日前必须取得相应的教师资格证","长春市第一五三中学初中数学教师",{"$f":"VLOOKUP(M208,[1]未招聘!A:I,8,FALSE)","v":1},0,{"$f":"VLOOKUP(M208,[1]未招聘!A:I,9,FALSE)","v":"是"}]
[206,"长春市双阳区教育局","长春市第一五三中学","初中物理教师","初级专业技术岗位","财政拨款",1,"不限","统招本科学历学士学位或硕士研究生及以上学历学位","研究生：物理学(一级学科)、学科教学(物理)\n本科：物理学类(一级学科)","报名邮箱：1004287029@qq.com\n报名电话：0431-84222025","2022年7月31日前必须取得相应的教师资格证",{"$f":"C209&D209","v":"长春市第一五三中学初中物理教师"},{"$f":"VLOOKUP(M209,[1]未招聘!A:I,8,FALSE)","v":1},{"$f":"N209-G209","v":0},{"$f":"VLOOKUP(M209,[1]未招聘!A:I,9,FALSE)","v":"是"}]
[207,"长春市双阳区教育局","长春市第一五三中学","初中生物教师","初级专业技术岗位","财政拨款",1,"不限","统招本科学历学士学位或硕士研究生及以上学历学位","研究生：生物科学(一级学科)、学科教学(生物)\n本科：生物科学类(一级学科)","报名邮箱：1004287029@qq.com\n报名电话：0431-84222025","2022年7月31日前必须取得相应的教师资格证","长春市第一五三中学初中生物教师",{"$f":"VLOOKUP(M210,[1]未招聘!A:I,8,FALSE)","v":1},0,{"$f":"VLOOKUP(M210,[1]未招聘!A:I,9,FALSE)","v":"是"}]
[208,"长春市双阳区教育局","长春市第一六二中学","初中英语教师","初级专业技术岗位","财政拨款",1,"不限","统招本科学历学士学位或硕士研究生及以上学历学位","研究生：学科教学(英语)、外国语言文学(英语方向)、翻译(英语方向)、课程与教学论(英语)\n本科：外国语言文学类(英语方向)","报名邮箱：1004287029@qq.com\n报名电话：0431-84222025","2022年7月31日前必须取得相应的教师资格证","长春市第一六二中学初中英语教师",{"$f":"VLOOKUP(M211,[1]未招聘!A:I,8,FALSE)","v":1},0,{"$f":"VLOOKUP(M211,[1]未招聘!A:I,9,FALSE)","v":"是"}]
[209,"长春市双阳区教育局","长春市一六二中学","初中生物教师","初级专业技术岗位","财政拨款",1,"不限","统招本科学历学士学位或硕士研究生及以上学历学位","研究生：生物科学(一级学科)、学科教学(生物)\n本科：生物科学类(一级学科)","报名邮箱：1004287029@qq.com\n报名电话：0431-84222025","2022年7月31日前必须取得相应的教师资格证","长春市一六二中学初中生物教师",{"$f":"VLOOKUP(M212,[1]未招聘!A:I,8,FALSE)","v":1},0,{"$f":"VLOOKUP(M212,[1]未招聘!A:I,9,FALSE)","v":"是"}]
[210,"长春市双阳区教育局","长春市晨宇希望中学","初中语文教师","初级专业技术岗位","财政拨款",1,"不限","统招本科学历学士学位或硕士研究生及以上学历学位","研究生：中国语言文学(一级学科)、学科教学(语文)、课程与教学论(语文方向)\n本科：中国语言文学类(一级学科)","报名邮箱：1004287029@qq.com\n报名电话：0431-84222025","2022年7月31日前必须取得相应的教师资格证","长春市晨宇希望中学初中语文教师",{"$f":"VLOOKUP(M213,[1]未招聘!A:I,8,FALSE)","v":1},0,{"$f":"VLOOKUP(M213,[1]未招聘!A:I,9,FALSE)","v":"是"}]
[211,"长春市双阳区教育局","长春市晨宇希望中学","初中物理教师","初级专业技术岗位","财政拨款",1,"不限","统招本科学历学士学位或硕士研究生及以上学历学位","研究生：物理学(一级学科)、学科教学(物理)、课程与教学论(物理)\n本科：物理学类(一级学科)","报名邮箱：1004287029@qq.com\n报名电话：0431-84222025","2022年7月31日前必须取得相应的教师资格证","长春市晨宇希望中学初中物理教师",{"$f":"VLOOKUP(M214,[1]未招聘!A:I,8,FALSE)","v":1},0,{"$f":"VLOOKUP(M214,[1]未招聘!A:I,9,FALSE)","v":"是"}]
[212,"长春市双阳区教育局","东师双阳（长春市双阳区实验学校）","小学语文教师","初级专业技术岗位","财政拨款",1,"不限","统招本科学历学士学位或硕士研究生及以上学历学位","研究生：中国语言文学(一级学科)、学科教学(语文)、课程与教学论(语文)\n本科：中国语言文学类(一级学科)","报名邮箱：1004287029@qq.com\n报名电话：0431-84222025","2022年7月31日前必须取得相应的教师资格证","东师双阳（长春市双阳区实验学校）小学语文教师",{"$f":"VLOOKUP(M215,[1]未招聘!A:I,8,FALSE)","v":{"$error":"#N/A"}},{"$error":"#N/A"},{"$f":"VLOOKUP(M215,[1]未招聘!A:I,9,FALSE)","v":{"$error":"#N/A"}}]
[213,"长春市双阳区教育局","东师双阳（长春市双阳区实验学校）","小学数学教师","初级专业技术岗位","财政拨款",1,"不限","统招本科学历学士学位或硕士研究生及以上学历学位","研究生：学科教学(数学)、基础数学、计算数学、概率论与数理统计、应用数学、运筹学与控制论、统计学\n本科：数学与应用数学、信息与计算科学、数理基础科学、统计学、应用统计学","报名邮箱：1004287029@qq.com\n报名电话：0431-84222025","2022年7月31日前必须取得相应的教师资格证","东师双阳（长春市双阳区实验学校）小学数学教师",{"$f":"VLOOKUP(M216,[1]未招聘!A:I,8,FALSE)","v":{"$error":"#N/A"}},{"$error":"#N/A"},{"$f":"VLOOKUP(M216,[1]未招聘!A:I,9,FALSE)","v":{"$error":"#N/A"}}]
[214,"长春市双阳区教育局","东师双阳（长春市双阳区实验学校）","初中地理教师","初级专业技术岗位","财政拨款",1,"不限","统招本科学历学士学位或硕士研究生及以上学历学位","研究生：学科教学(地理)、自然地理学、人文地理学、地图学与地理信息系统、课程与教学论(地理)\n本科：地理科学、地理信息科学","报名邮箱：1004287029@qq.com\n报名电话：0431-84222025","2022年7月31日前必须取得相应的教师资格证","东师双阳（长春市双阳区实验学校）初中地理教师",{"$f":"VLOOKUP(M217,[1]未招聘!A:I,8,FALSE)","v":{"$error":"#N/A"}},{"$error":"#N/A"},{"$f":"VLOOKUP(M217,[1]未招聘!A:I,9,FALSE)","v":{"$error":"#N/A"}}]
[215,"长春市双阳区教育局","东师双阳（长春市双阳区实验学校）","初中历史教师","初级专业技术岗位","财政拨款",1,"不限","统招本科学历学士学位或硕士研究生及以上学历学位","研究生：中国史、世界史、学科教学(历史)、课程与教学论(历史)\n本科：历史学类(一级学科)","报名邮箱：1004287029@qq.com\n报名电话：0431-84222025","2022年7月31日前必须取得相应的教师资格证","东师双阳（长春市双阳区实验学校）初中历史教师",{"$f":"VLOOKUP(M218,[1]未招聘!A:I,8,FALSE)","v":{"$error":"#N/A"}},{"$error":"#N/A"},{"$f":"VLOOKUP(M218,[1]未招聘!A:I,9,FALSE)","v":{"$error":"#N/A"}}]
[216,"长春市双阳区教育局","东师双阳（长春市双阳区实验学校）","初中化学教师","初级专业技术岗位","财政拨款",1,"不限","统招本科学历学士学位或硕士研究生及以上学历学位","研究生：化学(一级学科)、学科教学(化学)\n本科：化学类(一级学科)","报名邮箱：1004287029@qq.com\n报名电话：0431-84222025","2022年7月31日前必须取得相应的教师资格证","东师双阳（长春市双阳区实验学校）初中化学教师",{"$f":"VLOOKUP(M219,[1]未招聘!A:I,8,FALSE)","v":{"$error":"#N/A"}},{"$error":"#N/A"},{"$f":"VLOOKUP(M219,[1]未招聘!A:I,9,FALSE)","v":{"$error":"#N/A"}}]
[217,"榆树市教育局","榆树市实验高级中学校","高中语文教师","初级专业技术岗位","财政拨款",1,"不限","统招本科学历学士学位或硕士研究生及以上学历学位","研究生：中国语言文学(一级学科)、学科教学(语文)、课程与教学论(语文)\n本科：中国语言文学类(一级学科)","报名邮箱：234141142@qq.com\n报名电话：0431-83618015转8423","2022年7月31日前必须取得相应的教师资格证","榆树市实验高级中学校高中语文教师",{"$f":"VLOOKUP(M220,[1]未招聘!A:I,8,FALSE)","v":1},0,{"$f":"VLOOKUP(M220,[1]未招聘!A:I,9,FALSE)","v":"是"}]
[218,"榆树市教育局","榆树市第一高级中学校","高中数学教师","初级专业技术岗位","财政拨款",1,"不限","统招本科学历学士学位或硕士研究生及以上学历学位","研究生：数学(一级学科)、学科教学(数学)、课程与教学论(数学)\n本科：数学类(一级学科)","报名邮箱：234141142@qq.com\n报名电话：0431-83618015转8423","2022年7月31日前必须取得相应的教师资格证","榆树市第一高级中学校高中数学教师",{"$f":"VLOOKUP(M221,[1]未招聘!A:I,8,FALSE)","v":1},0,{"$f":"VLOOKUP(M221,[1]未招聘!A:I,9,FALSE)","v":"是"}]
[219,"榆树市教育局","榆树市第一高级中学校","高中语文教师","初级专业技术岗位","财政拨款",1,"不限","统招本科学历学士学位或硕士研究生及以上学历学位","研究生：中国语言文学(一级学科)、学科教学(语文)、课程与教学论(语文)\n本科：中国语言文学类(一级学科)","报名邮箱：234141142@qq.com\n报名电话：0431-83618015转8423","2022年7月31日前必须取得相应的教师资格证","榆树市第一高级中学校高中语文教师",{"$f":"VLOOKUP(M222,[1]未招聘!A:I,8,FALSE)","v":1},0,{"$f":"VLOOKUP(M222,[1]未招聘!A:I,9,FALSE)","v":"是"}]
[220,"榆树市教育局","榆树市第一高级中学校","高中历史老师","初级专业技术岗位","财政拨款",1,"不限","统招本科学历学士学位或硕士研究生及以上学历学位","研究生：历史学(门类)、学科教学(历史)、课程与教学论(历史)\n本科：历史学类(一级学科)","报名邮箱：234141142@qq.com\n报名电话：0431-83618015转8423","2022年7月31日前必须取得相应的教师资格证","榆树市第一高级中学校高中历史老师",{"$f":"VLOOKUP(M223,[1]未招聘!A:I,8,FALSE)","v":1},0,{"$f":"VLOOKUP(M223,[1]未招聘!A:I,9,FALSE)","v":"是"}]
[221,"榆树市教育局","榆树市第一高级中学校","高中政治教师","初级专业技术岗位","财政拨款",1,"不限","统招本科学历学士学位或硕士研究生及以上学历学位","研究生：政治学(一级学科)、马克思主义理论(一级学科)、学科教学(思政)、课程与教学论(思政)\n本科：政治学类(一级学科)、马克思主义理论类(一级学科)","报名邮箱：234141142@qq.com\n报名电话：0431-83618015转8423","2022年7月31日前必须取得相应的教师资格证","榆树市第一高级中学校高中政治教师",{"$f":"VLOOKUP(M224,[1]未招聘!A:I,8,FALSE)","v":1},0,{"$f":"VLOOKUP(M224,[1]未招聘!A:I,9,FALSE)","v":"是"}]
[222,"榆树市教育局","长春市榆树高级中学校","高中信息技术教师","初级专业技术岗位","财政拨款",1,"不限","统招本科学历学士学位或硕士研究生及以上学历学位","研究生：计算机科学与技术(一级学科)、计算机技术(专业学位)、现代教育技术、课程与教学论(信息技术)\n本科：教育技术学、计算机类(一级学科)","报名邮箱：234141142@qq.com\n报名电话：0431-83618015转8423","2022年7月31日前必须取得相应的教师资格证","长春市榆树高级中学校高中信息技术教师",{"$f":"VLOOKUP(M225,[1]未招聘!A:I,8,FALSE)","v":1},0,{"$f":"VLOOKUP(M225,[1]未招聘!A:I,9,FALSE)","v":"是"}]
[223,"榆树市教育局","榆树市实验小学校","小学体育教师","初级专业技术岗位","财政拨款",1,"不限","统招本科学历学士学位或硕士研究生及以上学历学位","研究生：体育学(一级学科)、体育(一级学科)、课程与教学论(体育)、学科教学(体育)\n本科：体育学类(一级学科)","报名邮箱：234141142@qq.com\n报名电话：0431-83618015转8423","2022年7月31日前必须取得相应的教师资格证","榆树市实验小学校小学体育教师",{"$f":"VLOOKUP(M226,[1]未招聘!A:I,8,FALSE)","v":1},0,{"$f":"VLOOKUP(M226,[1]未招聘!A:I,9,FALSE)","v":"是"}]
[224,"榆树市教育局","榆树市第二实验小学校","小学数学教师","初级专业技术岗位","财政拨款",1,"不限","统招本科学历学士学位或硕士研究生及以上学历学位","研究生：数学(一级学科)、学科教学(数学)、课程与教学论(数学)\n本科：数学类(一级学科)","报名邮箱：234141142@qq.com\n报名电话：0431-83618015转8423","2022年7月31日前必须取得相应的教师资格证","榆树市第二实验小学校小学数学教师",{"$f":"VLOOKUP(M227,[1]未招聘!A:I,8,FALSE)","v":1},0,{"$f":"VLOOKUP(M227,[1]未招聘!A:I,9,FALSE)","v":"是"}]
[225,"榆树市教育局","榆树市第四小学校","小学语文教师","初级专业技术岗位","财政拨款",1,"不限","统招本科学历学士学位或硕士研究生及以上学历学位","研究生：中国语言文学(一级学科)、学科教学(语文)、课程与教学论(语文)\n本科：中国语言文学类(一级学科)","报名邮箱：234141142@qq.com\n报名电话：0431-83618015转8423","2022年7月31日前必须取得相应的教师资格证","榆树市第四小学校小学语文教师",{"$f":"VLOOKUP(M228,[1]未招聘!A:I,8,FALSE)","v":1},0,{"$f":"VLOOKUP(M228,[1]未招聘!A:I,9,FALSE)","v":"是"}]
[226,"榆树市教育局","榆树市第一小学校","小学体育教师","初级专业技术岗位","财政拨款",1,"不限","统招本科学历学士学位或硕士研究生及以上学历学位","研究生：体育学(一级学科)、体育(一级学科)、课程与教学论(体育)、学科教学(体育)\n本科：体育学类(一级学科)","报名邮箱：234141142@qq.com\n报名电话：0431-83618015转8423","2022年7月31日前必须取得相应的教师资格证","榆树市第一小学校小学体育教师",{"$f":"VLOOKUP(M229,[1]未招聘!A:I,8,FALSE)","v":1},0,{"$f":"VLOOKUP(M229,[1]未招聘!A:I,9,FALSE)","v":"是"}]
[227,"德惠市教育局","德惠市实验中学","高中语文教师","初级专业技术岗位","财政拨款",1,"不限","统招本科学历学士学位或硕士研究生及以上学历学位","研究生：中国语言文学（一级学科）、学科教学（语文）\n本科：中国语言文学类（一级学科）","报名邮箱：446083263@qq.com\n报名电话：0431-87385009\n13943098210","2022年7月31日前必须取得相应的教师资格证"]
[228,"德惠市教育局","德惠市实验中学","高中英语教师","初级专业技术岗位","财政拨款",1,"不限","统招本科学历学士学位或硕士研究生及以上学历学位","研究生：英语语言文学、外国语言学及应用语（英语）、学科教学（英语）\n本科：英语、商务英语","报名邮箱：446083263@qq.com\n报名电话：0431-87385009\n13943098210","2022年7月31日前必须取得相应的教师资格证"]
[229,"德惠市教育局","德惠市实验中学","高中生物教师","初级专业技术岗位","财政拨款",2,"不限","统招本科学历学士学位或硕士研究生及以上学历学位","研究生：生物学（一级学科）、学科教学（生物）\n本科：生物科学类（一级学科）","报名邮箱：446083263@qq.com\n报名电话：0431-87385009\n13943098210","2022年7月31日前必须取得相应的教师资格证"]
[230,"德惠市教育局","德惠市实验中学","高中地理教师","初级专业技术岗位","财政拨款",1,"不限","统招本科学历学士学位或硕士研究生及以上学历学位","研究生：地理学（一级学科）、学科教学（地理）  \n本科：地理科学类（一级学科）","报名邮箱：446083263@qq.com\n报名电话：0431-87385009\n13943098210","2022年7月31日前必须取得相应的教师资格证"]
[231,"德惠市教育局","德惠市实验中学","高中历史教师","初级专业技术岗位","财政拨款",1,"不限","统招本科学历学士学位或硕士研究生及以上学历学位","研究生：历史学（门类）、学科教学（历史）\n本科：历史学类（一级学科）","报名邮箱：446083263@qq.com\n报名电话：0431-87385009\n13943098210","2022年7月31日前必须取得相应的教师资格证"]
[232,"德惠市教育局","德惠市实验中学","高中体育教师","初级专业技术岗位","财政拨款",1,"不限","统招本科学历学士学位或硕士研究生及以上学历学位","研究生：体育学（一级学科）、学科教学（体育）、体育（专业学位）\n本科：体育学类（一级学科）","报名邮箱：446083263@qq.com\n报名电话：0431-87385009\n13943098210","2022年7月31日前必须取得相应的教师资格证"]
[233,"德惠市教育局","德惠市第二实验中学","高中物理教师","初级专业技术岗位","财政拨款",1,"不限","统招本科学历学士学位或硕士研究生及以上学历学位","研究生：物理学（一级学科）、学科教学（物理）  \n本科：物理学类（一级学科）","报名邮箱：446083263@qq.com\n报名电话：0431-87385009\n13943098210","2022年7月31日前必须取得相应的教师资格证"]
[234,"德惠市教育局","德惠市第二实验中学","高中体育教师","初级专业技术岗位","财政拨款",1,"不限","统招本科学历学士学位或硕士研究生及以上学历学位","研究生：体育学（一级学科）、学科教学（体育）、体育（专业学位）\n本科：体育学类（一级学科）","报名邮箱：446083263@qq.com\n报名电话：0431-87385009\n13943098210","2022年7月31日前必须取得相应的教师资格证"]
[235,"德惠市教育局","德惠市第一中学","高中语文教师","初级专业技术岗位","财政拨款",2,"不限","统招本科学历学士学位或硕士研究生及以上学历学位","研究生：中国语言文学（一级学科）、学科教学（语文）\n本科：中国语言文学类（一级学科）","报名邮箱：446083263@qq.com\n报名电话：0431-87385009\n13943098210","2022年7月31日前必须取得相应的教师资格证"]
[236,"德惠市教育局","德惠市第一中学","高中数学教师","初级专业技术岗位","财政拨款",2,"不限","统招本科学历学士学位或硕士研究生及以上学历学位","研究生：数学（一级学科）、学科教学（数学）                           \n本科：数学类（一级学科）","报名邮箱：446083263@qq.com\n报名电话：0431-87385009\n13943098210","2022年7月31日前必须取得相应的教师资格证"]
[237,"德惠市教育局","德惠市第一中学","高中生物教师","初级专业技术岗位","财政拨款",1,"不限","统招本科学历学士学位或硕士研究生及以上学历学位","研究生：生物学（一级学科）、学科教学（生物）\n本科：生物科学类（一级学科）","报名邮箱：446083263@qq.com\n报名电话：0431-87385009\n13943098210","2022年7月31日前必须取得相应的教师资格证"]
[238,"德惠市教育局","德惠市第一中学","高中历史教师","初级专业技术岗位","财政拨款",1,"不限","统招本科学历学士学位或硕士研究生及以上学历学位","研究生：历史学（门类）、学科教学（历史）\n本科：历史学类（一级学科）","报名邮箱：446083263@qq.com\n报名电话：0431-87385009\n13943098210","2022年7月31日前必须取得相应的教师资格证"]
[239,"德惠市教育局","德惠市第四中学","高中语文教师","初级专业技术岗位","财政拨款",1,"不限","统招本科学历学士学位或硕士研究生及以上学历学位","研究生：中国语言文学（一级学科）、学科教学（语文）\n本科：中国语言文学类（一级学科）","报名邮箱：446083263@qq.com\n报名电话：0431-87385009\n13943098210","2022年7月31日前必须取得相应的教师资格证"]
[240,"德惠市教育局","德惠市第四中学","高中数学教师","初级专业技术岗位","财政拨款",1,"不限","统招本科学历学士学位或硕士研究生及以上学历学位","研究生：数学（一级学科）、学科教学（数学）                           \n本科：数学类（一级学科）","报名邮箱：446083263@qq.com\n报名电话：0431-87385009\n13943098210","2022年7月31日前必须取得相应的教师资格证"]
[241,"德惠市教育局","德惠市第四中学","高中英语教师","初级专业技术岗位","财政拨款",1,"不限","统招本科学历学士学位或硕士研究生及以上学历学位","研究生：英语语言文学、外国语言学及应用语（英语）、学科教学（英语）\n本科：英语、商务英语","报名邮箱：446083263@qq.com\n报名电话：0431-87385009\n13943098210","2022年7月31日前必须取得相应的教师资格证"]
[242,"德惠市教育局","德惠市第四中学","高中地理教师","初级专业技术岗位","财政拨款",1,"不限","统招本科学历学士学位或硕士研究生及以上学历学位","研究生：地理学（一级学科）、学科教学（地理）  \n本科：地理科学类（一级学科）","报名邮箱：446083263@qq.com\n报名电话：0431-87385009\n13943098210","2022年7月31日前必须取得相应的教师资格证"]
[243,"德惠市教育局","德惠市第四中学","高中历史教师","初级专业技术岗位","财政拨款",1,"不限","统招本科学历学士学位或硕士研究生及以上学历学位","研究生：历史学（门类）、学科教学（历史）\n本科：历史学类（一级学科）","报名邮箱：446083263@qq.com\n报名电话：0431-87385009\n13943098210","2022年7月31日前必须取得相应的教师资格证"]
[244,"德惠市教育局","德惠市第四中学","高中政治教师","初级专业技术岗位","财政拨款",1,"不限","统招本科学历学士学位或硕士研究生及以上学历学位","研究生：学科教学（思政）、政治学（一级学科）、马克思主义理论（一级学科）\n本科：政治学类（一级学科）、马克思主义理论类（一级学科）","报名邮箱：446083263@qq.com\n报名电话：0431-87385009\n13943098210","2022年7月31日前必须取得相应的教师资格证"]
[245,"德惠市教育局","德惠市第三中学","初中历史教师","初级专业技术岗位","财政拨款",1,"不限","统招本科学历学士学位或硕士研究生及以上学历学位","研究生：历史学（门类）、学科教学（历史）\n本科：历史学类（一级学科）","报名邮箱：446083263@qq.com\n报名电话：0431-87385009\n13943098210","2022年7月31日前必须取得相应的教师资格证"]
[246,"德惠市教育局","德惠市第三中学","初中政治教师","初级专业技术岗位","财政拨款",1,"不限","统招本科学历学士学位或硕士研究生及以上学历学位","研究生：学科教学（思政）、政治学（一级学科）、马克思主义理论（一级学科）\n本科：政治学类（一级学科）、马克思主义理论类（一级学科）","报名邮箱：446083263@qq.com\n报名电话：0431-87385009\n13943098210","2022年7月31日前必须取得相应的教师资格证"]
[247,"德惠市教育局","德惠市第二十九中学中学部","初中生物教师","初级专业技术岗位","财政拨款",1,"不限","统招本科学历学士学位或硕士研究生及以上学历学位","研究生：生物学（一级学科）、学科教学（生物）\n本科：生物科学类（一级学科）","报名邮箱：446083263@qq.com\n报名电话：0431-87385009\n13943098210","2022年7月31日前必须取得相应的教师资格证"]
[248,"德惠市教育局","德惠市第二十九中学中学部","初中历史教师","初级专业技术岗位","财政拨款",2,"不限","统招本科学历学士学位或硕士研究生及以上学历学位","研究生：历史学（门类）、学科教学（历史）\n本科：历史学类（一级学科）","报名邮箱：446083263@qq.com\n报名电话：0431-87385009\n13943098210","2022年7月31日前必须取得相应的教师资格证"]
[249,"德惠市教育局","德惠市第二十九中学小学部","小学语文教师","初级专业技术岗位","财政拨款",1,"不限","统招本科学历学士学位或硕士研究生及以上学历学位","研究生：中国语言文学（一级学科）、学科教学（语文）、小学教育（语文）\n本科：中国语言文学类（一级学科）、小学教育（语文）","报名邮箱：446083263@qq.com\n报名电话：0431-87385009\n13943098210","2022年7月31日前必须取得相应的教师资格证"]
[250,"德惠市教育局","德惠市第二十九中学小学部","小学数学教师","初级专业技术岗位","财政拨款",1,"不限","统招本科学历学士学位或硕士研究生及以上学历学位","研究生：数学（一级学科）、学科教学（数学）、小学教育 （数学）                          \n本科：数学类（一级学科）、小学教育（数学）","报名邮箱：446083263@qq.com\n报名电话：0431-87385009\n13943098210","2022年7月31日前必须取得相应的教师资格证"]
[251,"德惠市教育局","德惠市第二十九中学小学部","小学英语教师","初级专业技术岗位","财政拨款",1,"不限","统招本科学历学士学位或硕士研究生及以上学历学位","研究生：英语语言文学、外国语言学及应用语（英语）、学科教学（英语）\n本科：英语、商务英语","报名邮箱：446083263@qq.com\n报名电话：0431-87385009\n13943098210","2022年7月31日前必须取得相应的教师资格证"]
[252,"德惠市教育局","德惠市第二十九中学小学部","小学道德与法治教师","初级专业技术岗位","财政拨款",1,"不限","统招本科学历学士学位或硕士研究生及以上学历学位","研究生：学科教学（思政）、政治学（一级学科）、马克思主义理论（一级学科）\n本科：政治学类（一级学科）、马克思主义理论类（一级学科）","报名邮箱：446083263@qq.com\n报名电话：0431-87385009\n13943098210","2022年7月31日前必须取得相应的教师资格证"]
[253,"德惠市教育局","德惠市第二十九中学小学部","小学音乐教师","初级专业技术岗位","财政拨款",1,"不限","统招本科学历学士学位或硕士研究生及以上学历学位","研究生：音乐学、音乐（专业学位）、学科教学（音乐）\n本科：音乐学、音乐表演","报名邮箱：446083263@qq.com\n报名电话：0431-87385009\n13943098210","2022年7月31日前必须取得相应的教师资格证"]
[254,"德惠市教育局","德惠市第二十九中学小学部","小学体育教师","初级专业技术岗位","财政拨款",1,"不限","统招本科学历学士学位或硕士研究生及以上学历学位","研究生：体育学（一级学科）、学科教学（体育）、体育（专业学位）\n本科：体育学类（一级学科）","报名邮箱：446083263@qq.com\n报名电话：0431-87385009\n13943098210","2022年7月31日前必须取得相应的教师资格证"]
[255,"德惠市教育局","德惠市实验小学","小学语文教师","初级专业技术岗位","财政拨款",1,"不限","统招本科学历学士学位或硕士研究生及以上学历学位","研究生：中国语言文学（一级学科）、学科教学（语文）、小学教育（语文）\n本科：中国语言文学类（一级学科）、小学教育（语文）","报名邮箱：446083263@qq.com\n报名电话：0431-87385009\n13943098210","2022年7月31日前必须取得相应的教师资格证"]
[256,"德惠市教育局","德惠市实验小学","小学音乐教师","初级专业技术岗位","财政拨款",1,"不限","统招本科学历学士学位或硕士研究生及以上学历学位","研究生：音乐学、音乐（专业学位）、学科教学（音乐）\n本科：音乐学、音乐表演","报名邮箱：446083263@qq.com\n报名电话：0431-87385009\n13943098210","2022年7月31日前必须取得相应的教师资格证"]
[257,"德惠市教育局","德惠市实验小学","小学体育教师","初级专业技术岗位","财政拨款",1,"不限","统招本科学历学士学位或硕士研究生及以上学历学位","研究生：体育学（一级学科）、学科教学（体育）、体育（专业学位）\n本科：体育学类（一级学科）","报名邮箱：446083263@qq.com\n报名电话：0431-87385009\n13943098210","2022年7月31日前必须取得相应的教师资格证"]
[258,"德惠市教育局","德惠市第一小学","小学英语教师","初级专业技术岗位","财政拨款",1,"不限","统招本科学历学士学位或硕士研究生及以上学历学位","研究生：英语语言文学、外国语言学及应用语（英语）、学科教学（英语）\n本科：英语、商务英语","报名邮箱：446083263@qq.com\n报名电话：0431-87385009\n13943098210","2022年7月31日前必须取得相应的教师资格证"]
[259,"德惠市教育局","德惠市第一小学","小学体育教师","初级专业技术岗位","财政拨款",1,"不限","统招本科学历学士学位或硕士研究生及以上学历学位","研究生：体育学（一级学科）、学科教学（体育）、体育（专业学位）\n本科：体育学类（一级学科）","报名邮箱：446083263@qq.com\n报名电话：0431-87385009\n13943098210","2022年7月31日前必须取得相应的教师资格证"]
[260,"德惠市教育局","德惠市第四小学","小学数学教师","初级专业技术岗位","财政拨款",1,"不限","统招本科学历学士学位或硕士研究生及以上学历学位","研究生：数学（一级学科）、学科教学（数学）、小学教育 （数学）                          \n本科：数学类（一级学科）、小学教育（数学）","报名邮箱：446083263@qq.com\n报名电话：0431-87385009\n13943098210","2022年7月31日前必须取得相应的教师资格证"]
[261,"德惠市教育局","德惠市第四小学","小学体育教师","初级专业技术岗位","财政拨款",1,"不限","统招本科学历学士学位或硕士研究生及以上学历学位","研究生：体育学（一级学科）、学科教学（体育）、体育（专业学位）\n本科：体育学类（一级学科）","报名邮箱：446083263@qq.com\n报名电话：0431-87385009\n13943098210","2022年7月31日前必须取得相应的教师资格证"]
[262,"德惠市教育局","德惠市第六小学","小学语文教师","初级专业技术岗位","财政拨款",1,"不限","统招本科学历学士学位或硕士研究生及以上学历学位","研究生：中国语言文学（一级学科）、学科教学（语文）、小学教育（语文）\n本科：中国语言文学类（一级学科）、小学教育（语文）","报名邮箱：446083263@qq.com\n报名电话：0431-87385009\n13943098210","2022年7月31日前必须取得相应的教师资格证"]
[263,"德惠市教育局","德惠市第六小学","小学数学教师","初级专业技术岗位","财政拨款",1,"不限","统招本科学历学士学位或硕士研究生及以上学历学位","研究生：数学（一级学科）、学科教学（数学）、小学教育 （数学）                          \n本科：数学类（一级学科）、小学教育（数学）","报名邮箱：446083263@qq.com\n报名电话：0431-87385009\n13943098210","2022年7月31日前必须取得相应的教师资格证"]
[264,"德惠市教育局","德惠市第六小学","小学英语教师","初级专业技术岗位","财政拨款",1,"不限","统招本科学历学士学位或硕士研究生及以上学历学位","研究生：英语语言文学、外国语言学及应用语（英语）、学科教学（英语）\n本科：英语、商务英语","报名邮箱：446083263@qq.com\n报名电话：0431-87385009\n13943098210","2022年7月31日前必须取得相应的教师资格证"]
[265,"德惠市教育局","德惠市第六小学","小学音乐教师","初级专业技术岗位","财政拨款",1,"不限","统招本科学历学士学位或硕士研究生及以上学历学位","研究生：音乐学、音乐（专业学位）、学科教学（音乐）\n本科：音乐学、音乐表演","报名邮箱：446083263@qq.com\n报名电话：0431-87385009\n13943098210","2022年7月31日前必须取得相应的教师资格证"]
[266,"德惠市教育局","德惠市第六小学","小学体育教师","初级专业技术岗位","财政拨款",1,"不限","统招本科学历学士学位或硕士研究生及以上学历学位","研究生：体育学（一级学科）、学科教学（体育）、体育（专业学位）\n本科：体育学类（一级学科）","报名邮箱：446083263@qq.com\n报名电话：0431-87385009\n13943098210","2022年7月31日前必须取得相应的教师资格证"]
[267,"德惠市教育局","德惠市第六小学","小学美术教师","初级专业技术岗位","财政拨款",1,"不限","统招本科学历学士学位或硕士研究生及以上学历学位","研究生：学科教学（美术）、美术学、美术（专业学位）\n本科：美术学类（一级学科）","报名邮箱：446083263@qq.com\n报名电话：0431-87385009\n13943098210","2022年7月31日前必须取得相应的教师资格证"]
[268,"德惠市教育局","德惠市第六小学","小学信息技术教师","初级专业技术岗位","财政拨款",1,"不限","统招本科学历学士学位或硕士研究生及以上学历学位","研究生：计算机科学与技术（一级学科）、计算机技术（专业学位）、现代教育技术\n本科：教育技术学、计算机类（一级学科）","报名邮箱：446083263@qq.com\n报名电话：0431-87385009\n13943098210","2022年7月31日前必须取得相应的教师资格证"]
[269,"德惠市教育局","德惠市幼儿园","学前教师","初级专业技术岗位","财政拨款",4,"不限","统招本科学历学士学位或硕士研究生及以上学历学位","研究生：学前教育（专业学位）、学前教育学\n本科：学前教育","报名邮箱：446083263@qq.com\n报名电话：0431-87385009\n13943098210","2022年7月31日前必须取得相应的教师资格证"]
[270,"公主岭市教育局","公主岭市第三中学校","高中政治教师","初级专业技术岗位","财政拨款",1,"不限","统招本科学历学士学位或硕士研究生及以上学历学位","研究生：学科教学(思政)、政治学、马克思主义理论(一级学科)、课程与教学论(思政)\n本科：政治学类(一级学科)、马克思主义理论类(一级学科)","报名邮箱：4057411@qq.com\n报名电话：0434—6297517、6297509","2022年7月31日前必须取得相应的教师资格证","公主岭市第三中学校高中政治教师",{"$f":"VLOOKUP(M273,[1]未招聘!A:I,8,FALSE)","v":1},0,{"$f":"VLOOKUP(M273,[1]未招聘!A:I,9,FALSE)","v":"是"}]
[271,"公主岭市教育局","公主岭市第三中学校","高中历史教师","初级专业技术岗位","财政拨款",2,"不限","统招本科学历学士学位或硕士研究生及以上学历学位","研究生：历史学(门类)、学科教学(历史)、课程与教学论(历史)\n本科：历史学类(一级学科)","报名邮箱：4057411@qq.com\n报名电话：0434—6297517、6297509","2022年7月31日前必须取得相应的教师资格证","公主岭市第三中学校高中历史教师",{"$f":"VLOOKUP(M274,[1]未招聘!A:I,8,FALSE)","v":2},0,{"$f":"VLOOKUP(M274,[1]未招聘!A:I,9,FALSE)","v":"是"}]
[272,"公主岭市教育局","公主岭市第三中学校","高中地理教师","初级专业技术岗位","财政拨款",2,"不限","统招本科学历学士学位或硕士研究生及以上学历学位","研究生：地理学(一级学科)、学科教学(地理)、课程与教学论(地理)\n本科：地理科学类(一级学科)","报名邮箱：4057411@qq.com\n报名电话：0434—6297517、6297509","2022年7月31日前必须取得相应的教师资格证","公主岭市第三中学校高中地理教师",{"$f":"VLOOKUP(M275,[1]未招聘!A:I,8,FALSE)","v":2},0,{"$f":"VLOOKUP(M275,[1]未招聘!A:I,9,FALSE)","v":"是"}]
[273,"公主岭市教育局","公主岭市第三中学校","高中物理教师","初级专业技术岗位","财政拨款",3,"不限","统招本科学历学士学位或硕士研究生及以上学历学位","研究生：物理学(一级学科)、学科教学(物理)、课程与教学论(物理)\n本科：物理学类(一级学科)","报名邮箱：4057411@qq.com\n报名电话：0434—6297517、6297509","2022年7月31日前必须取得相应的教师资格证","公主岭市第三中学校高中物理教师",{"$f":"VLOOKUP(M276,[1]未招聘!A:I,8,FALSE)","v":3},0,{"$f":"VLOOKUP(M276,[1]未招聘!A:I,9,FALSE)","v":"是"}]
[274,"公主岭市教育局","公主岭市第三中学校","高中生物教师","初级专业技术岗位","财政拨款",3,"不限","统招本科学历学士学位或硕士研究生及以上学历学位","研究生：生物学(一级学科)、学科教学(生物)、课程与教学论(生物方向)\n本科：生物科学类(一级学科)","报名邮箱：4057411@qq.com\n报名电话：0434—6297517、6297509","2022年7月31日前必须取得相应的教师资格证","公主岭市第三中学校高中生物教师",{"$f":"VLOOKUP(M277,[1]未招聘!A:I,8,FALSE)","v":3},0,{"$f":"VLOOKUP(M277,[1]未招聘!A:I,9,FALSE)","v":"是"}]
[275,"公主岭市教育局","公主岭市第六中学校","高中地理教师","初级专业技术岗位","财政拨款",1,"不限","统招本科学历学士学位或硕士研究生及以上学历学位","研究生：地理学(一级学科)、学科教学(地理)、课程与教学论(地理)\n本科：地理科学类(一级学科)","报名邮箱：4057411@qq.com\n报名电话：0434—6297517、6297509","2022年7月31日前必须取得相应的教师资格证","公主岭市第六中学校高中地理教师",{"$f":"VLOOKUP(M278,[1]未招聘!A:I,8,FALSE)","v":1},0,{"$f":"VLOOKUP(M278,[1]未招聘!A:I,9,FALSE)","v":"是"}]
[276,"公主岭市教育局","公主岭市第六中学校","高中美术教师","初级专业技术岗位","财政拨款",1,"不限","统招本科学历学士学位或硕士研究生及以上学历学位","研究生：美术学(一级学科)、设计学(一级学科)、艺术学、美术、艺术设计、学科教学(美术)、课程与教学论(美术)\n本科：美术学类(一级学科)、设计学类(一级学科)、艺术教育","报名邮箱：4057411@qq.com\n报名电话：0434—6297517、6297509","2022年7月31日前必须取得相应的教师资格证","公主岭市第六中学校高中美术教师",{"$f":"VLOOKUP(M279,[1]未招聘!A:I,8,FALSE)","v":1},0,{"$f":"VLOOKUP(M279,[1]未招聘!A:I,9,FALSE)","v":"是"}]
[277,"公主岭市教育局","公主岭市第六中学校","高中心理教师","初级专业技术岗位","财政拨款",1,"不限","统招本科学历学士学位或硕士研究生及以上学历学位","研究生：心理学、心理健康教育、课程与教学论(心理方向)\n本科：心理学类(一级学科)","报名邮箱：4057411@qq.com\n报名电话：0434—6297517、6297509","2022年7月31日前必须取得相应的教师资格证","公主岭市第六中学校高中心理教师",{"$f":"VLOOKUP(M280,[1]未招聘!A:I,8,FALSE)","v":1},0,{"$f":"VLOOKUP(M280,[1]未招聘!A:I,9,FALSE)","v":"是"}]
[278,"公主岭市教育局","公主岭市第四中学校","初中道德与法治教师","初级专业技术岗位","财政拨款",2,"不限","统招本科学历学士学位或硕士研究生及以上学历学位","研究生：学科教学(思政)、政治学、马克思主义理论(一级学科)、课程与教学论(思政)\n本科：政治学类(一级学科)、马克思主义理论类(一级学科)","报名邮箱：4057411@qq.com\n报名电话：0434—6297517、6297509","2022年7月31日前必须取得相应的教师资格证","公主岭市第四中学校初中道德与法治教师",{"$f":"VLOOKUP(M281,[1]未招聘!A:I,8,FALSE)","v":2},0,{"$f":"VLOOKUP(M281,[1]未招聘!A:I,9,FALSE)","v":"是"}]
[279,"公主岭市教育局","公主岭市第四中学校","初中历史教师","初级专业技术岗位","财政拨款",1,"不限","统招本科学历学士学位或硕士研究生及以上学历学位","研究生：历史学(门类)、学科教学(历史)、课程与教学论(历史)\n本科：历史学类(一级学科)","报名邮箱：4057411@qq.com\n报名电话：0434—6297517、6297509","2022年7月31日前必须取得相应的教师资格证","公主岭市第四中学校初中历史教师",{"$f":"VLOOKUP(M282,[1]未招聘!A:I,8,FALSE)","v":1},0,{"$f":"VLOOKUP(M282,[1]未招聘!A:I,9,FALSE)","v":"是"}]
[280,"公主岭市教育局","公主岭市第四中学校","初中地理教师","初级专业技术岗位","财政拨款",1,"不限","统招本科学历学士学位或硕士研究生及以上学历学位","研究生：地理学(一级学科)、学科教学(地理)、课程与教学论(地理)\n本科：地理科学类(一级学科)","报名邮箱：4057411@qq.com\n报名电话：0434—6297517、6297509","2022年7月31日前必须取得相应的教师资格证","公主岭市第四中学校初中地理教师",{"$f":"VLOOKUP(M283,[1]未招聘!A:I,8,FALSE)","v":1},0,{"$f":"VLOOKUP(M283,[1]未招聘!A:I,9,FALSE)","v":"是"}]
[281,"公主岭市教育局","公主岭市第四中学校","初中生物教师","初级专业技术岗位","财政拨款",2,"不限","统招本科学历学士学位或硕士研究生及以上学历学位","研究生：生物学(一级学科)、学科教学(生物)、课程与教学论(生物方向)\n本科：生物科学类(一级学科)","报名邮箱：4057411@qq.com\n报名电话：0434—6297517、6297509","2022年7月31日前必须取得相应的教师资格证","公主岭市第四中学校初中生物教师",{"$f":"VLOOKUP(M284,[1]未招聘!A:I,8,FALSE)","v":2},0,{"$f":"VLOOKUP(M284,[1]未招聘!A:I,9,FALSE)","v":"是"}]
[282,"公主岭市教育局","公主岭市第四中学校","初中信息技术教师","初级专业技术岗位","财政拨款",1,"不限","统招本科学历学士学位或硕士研究生及以上学历学位","研究生：计算机科学与技术(一级学科)、计算机技术(专业学位)、现代教育技术\n本科：教育技术学、计算机类(一级学科)","报名邮箱：4057411@qq.com\n报名电话：0434—6297517、6297509","2022年7月31日前必须取得相应的教师资格证","公主岭市第四中学校初中信息技术教师",{"$f":"VLOOKUP(M285,[1]未招聘!A:I,8,FALSE)","v":1},0,{"$f":"VLOOKUP(M285,[1]未招聘!A:I,9,FALSE)","v":"是"}]
[283,"公主岭市教育局","公主岭市第七中学校","初中生物教师","初级专业技术岗位","财政拨款",1,"不限","统招本科学历学士学位或硕士研究生及以上学历学位","研究生：生物学(一级学科)、学科教学(生物)、课程与教学论(生物方向)\n本科：生物科学类(一级学科)","报名邮箱：4057411@qq.com\n报名电话：0434—6297517、6297509","2022年7月31日前必须取得相应的教师资格证","公主岭市第七中学校初中生物教师",{"$f":"VLOOKUP(M286,[1]未招聘!A:I,8,FALSE)","v":1},0,{"$f":"VLOOKUP(M286,[1]未招聘!A:I,9,FALSE)","v":"是"}]
[284,"公主岭市教育局","公主岭市第八中学校","初中语文教师","初级专业技术岗位","财政拨款",1,"不限","统招本科学历学士学位或硕士研究生及以上学历学位","研究生：中国语言文学(一级学科)、学科教学(语文)、课程与教学论(语文)\n本科：中国语言文学类(一级学科)","报名邮箱：4057411@qq.com\n报名电话：0434—6297517、6297509","2022年7月31日前必须取得相应的教师资格证","公主岭市第八中学校初中语文教师",{"$f":"VLOOKUP(M287,[1]未招聘!A:I,8,FALSE)","v":1},0,{"$f":"VLOOKUP(M287,[1]未招聘!A:I,9,FALSE)","v":"是"}]
[285,"公主岭市教育局","公主岭市第八中学校","初中道德与法治教师","初级专业技术岗位","财政拨款",1,"不限","统招本科学历学士学位或硕士研究生及以上学历学位","研究生：学科教学(思政)、政治学、马克思主义理论(一级学科)、课程与教学论(思政)\n本科：政治学类(一级学科)、马克思主义理论类(一级学科)","报名邮箱：4057411@qq.com\n报名电话：0434—6297517、6297509","2022年7月31日前必须取得相应的教师资格证","公主岭市第八中学校初中道德与法治教师",{"$f":"VLOOKUP(M288,[1]未招聘!A:I,8,FALSE)","v":1},0,{"$f":"VLOOKUP(M288,[1]未招聘!A:I,9,FALSE)","v":"是"}]
[286,"公主岭市教育局","公主岭市第八中学校","小学英语教师","初级专业技术岗位","财政拨款",1,"不限","统招本科学历学士学位或硕士研究生及以上学历学位","研究生：外国语言文学(英语方向)、学科教学(英语)、翻译(英语方向)、课程与教学论(英语)、小学教育(英语方向)\n本科：英语、商务英语、外国语言文学类(英语方向)、小学教育(英语方向)","报名邮箱：4057411@qq.com\n报名电话：0434—6297517、6297509","2022年7月31日前必须取得相应的教师资格证","公主岭市第八中学校小学英语教师",{"$f":"VLOOKUP(M289,[1]未招聘!A:I,8,FALSE)","v":1},0,{"$f":"VLOOKUP(M289,[1]未招聘!A:I,9,FALSE)","v":"是"}]
[287,"公主岭市教育局","公主岭市实验小学校","小学语文教师","初级专业技术岗位","财政拨款",2,"不限","统招本科学历学士学位或硕士研究生及以上学历学位","研究生：中国语言文学(一级学科)、学科教学(语文)、课程与教学论(语文)、小学教育(语文)\n本科：中国语言文学类(一级学科)、小学教育(语文)","报名邮箱：4057411@qq.com\n报名电话：0434—6297517、6297509","2022年7月31日前必须取得相应的教师资格证","公主岭市实验小学校小学语文教师",{"$f":"VLOOKUP(M290,[1]未招聘!A:I,8,FALSE)","v":2},0,{"$f":"VLOOKUP(M290,[1]未招聘!A:I,9,FALSE)","v":"是"}]
[288,"公主岭市教育局","公主岭市实验小学校","小学道德与法治教师","初级专业技术岗位","财政拨款",2,"不限","统招本科学历学士学位或硕士研究生及以上学历学位","研究生：学科教学(思政)、政治学、马克思主义理论(一级学科)、课程与教学论(思政)\n本科：政治学类(一级学科)、马克思主义理论类(一级学科)","报名邮箱：4057411@qq.com\n报名电话：0434—6297517、6297509","2022年7月31日前必须取得相应的教师资格证","公主岭市实验小学校小学道德与法治教师",{"$f":"VLOOKUP(M291,[1]未招聘!A:I,8,FALSE)","v":2},0,{"$f":"VLOOKUP(M291,[1]未招聘!A:I,9,FALSE)","v":"是"}]
[289,"公主岭市教育局","公主岭市实验小学校","小学体育教师","初级专业技术岗位","财政拨款",5,"不限","统招本科学历学士学位或硕士研究生及以上学历学位","研究生：学科教学(体育)、体育学(一级学科)、课程与教学论(体育)\n本科：体育学类(一级学科)","报名邮箱：4057411@qq.com\n报名电话：0434—6297517、6297509","2022年7月31日前必须取得相应的教师资格证","公主岭市实验小学校小学体育教师",{"$f":"VLOOKUP(M292,[1]未招聘!A:I,8,FALSE)","v":3},-2,{"$f":"VLOOKUP(M292,[1]未招聘!A:I,9,FALSE)","v":"是"}]
[290,"公主岭市教育局","公主岭市实验小学校","小学音乐教师","初级专业技术岗位","财政拨款",2,"不限","统招本科学历学士学位或硕士研究生及以上学历学位","研究生：音乐与舞蹈学(一级学科)、学科教学(音乐)、音乐、舞蹈、课程与教学论(音乐)\n本科：音乐与舞蹈学类(一级学科)","报名邮箱：4057411@qq.com\n报名电话：0434—6297517、6297509","2022年7月31日前必须取得相应的教师资格证","公主岭市实验小学校小学音乐教师",{"$f":"VLOOKUP(M293,[1]未招聘!A:I,8,FALSE)","v":1},-1,{"$f":"VLOOKUP(M293,[1]未招聘!A:I,9,FALSE)","v":"是"}]
[291,"公主岭市教育局","公主岭市实验小学校","小学信息技术教师","初级专业技术岗位","财政拨款",1,"不限","统招本科学历学士学位或硕士研究生及以上学历学位","研究生：计算机科学与技术(一级学科)、计算机技术(专业学位)、现代教育技术\n本科：教育技术学、计算机类(一级学科)","报名邮箱：4057411@qq.com\n报名电话：0434—6297517、6297509","2022年7月31日前必须取得相应的教师资格证","公主岭市实验小学校小学信息技术教师",{"$f":"VLOOKUP(M294,[1]未招聘!A:I,8,FALSE)","v":1},0,{"$f":"VLOOKUP(M294,[1]未招聘!A:I,9,FALSE)","v":"是"}]
[292,"公主岭市教育局","公主岭市岭西小学校","小学体育教师","初级专业技术岗位","财政拨款",3,"不限","统招本科学历学士学位或硕士研究生及以上学历学位","研究生：学科教学(体育)、体育学(一级学科)、课程与教学论(体育)\n本科：体育学类(一级学科)","报名邮箱：4057411@qq.com\n报名电话：0434—6297517、6297509","2022年7月31日前必须取得相应的教师资格证","公主岭市岭西小学校小学体育教师",{"$f":"VLOOKUP(M295,[1]未招聘!A:I,8,FALSE)","v":3},0,{"$f":"VLOOKUP(M295,[1]未招聘!A:I,9,FALSE)","v":"是"}]
[{"$nulls":6},{"$f":"SUM(G4:G295)","v":360}]